Workbook

Sheet Menu
D1: =IF(ISNA(VLOOKUP(E1,A100:$B$500,2,0)),0,VLOOKUP(E1,A100:$B$500,2,0)) -> 2479 | E1: =+DFES!E1 -> 2479
B10: 2022/23 Calculation of Non Cheque Book/EPA Schools In Year and Carried Forward Revenue Balances
B11: Please Left Click on the Macro Button below to continue.
B12: If the aforementioned does not function, please refer to the Macro Guidance from this link: | M12: Macro guidance
B13: Should the Protected View message be visible on the Toolbar, click on Enable Editing.
A100: 1027 | B100: 1027
A101: 5949 | B101: 5949
A102: 2153 | B102: 2153
A103: 2062 | B103: 2062
A104: 2479 | B104: 2479
A105: 2300 | B105: 2300
A106: 2014 | B106: 2014
A107: 7016 | B107: 7016
A108: 7052 | B108: 7052
A109: 2239 | B109: 2239
A110: 2241 | B110: 2241
A111: 2456 | B111: 2456
A112: 2435 | B112: 2435
A113: 1025 | B113: 1025
A114: 1001 | B114: 1001
A115: 3353 | B115: 3353
A116: 7030 | B116: 7030
A117: 1002 | B117: 1002
A118: 2465 | B118: 2465
A119: 1048 | B119: 1048
A120: 2040 | B120: 2040
A121: 3432 | B121: 3432
A122: 2289 | B122: 2289
A123: 2185 | B123: 2185
A124: 2464 | B124: 2464
A125: 3320 | B125: 3320
A126: 2055 | B126: 2055
A127: 2191 | B127: 2191
A128: 7035 | B128: 7035
A129: 2284 | B129: 2284
A130: 1802 | B130: 1802
A131: 2454 | B131: 2454
A132: 3321 | B132: 3321
A133: 2294 | B133: 2294
A134: 1026 | B134: 1026
A135: 2486 | B135: 2486
A136: 3435 | B136: 3435
A137: 7050 | B137: 7050
A138: 1006 | B138: 1006
A139: 2079 | B139: 2079
A140: 2081 | B140: 2081
A141: 1015 | B141: 1015
A142: 1022 | B142: 1022
A143: 2087 | B143: 2087
A144: 2466 | B144: 2466
A145: 2091 | B145: 2091
A146: 2093 | B146: 2093
A147: 7006 | B147: 7006
A148: 2477 | B148: 2477
A149: 2099 | B149: 2099
A150: 1010 | B150: 1010
A151: 1021 | B151: 1021
A152: 3411 | B152: 3411
A153: 2474 | B153: 2474
A154: 3317 | B154: 3317
A155: 7026 | B155: 7026
A156: 3352 | B156: 3352
A157: 4063 | B157: 4063
A158: 2005 | B158: 2005
A159: 5415 | B159: 5415
A160: 1016 | B160: 1016
A161: 2115 | B161: 2115
A162: 2441 | B162: 2441
A163: 2321 | B163: 2321
A164: 2189 | B164: 2189
A165: 2119 | B165: 2119
A166: 7060 | B166: 7060
A167: 1024 | B167: 1024
A168: 7062 | B168: 7062
A169: 7012 | B169: 7012
A170: 2420 | B170: 2420
A171: 2004 | B171: 2004
A172: 1012 | B172: 1012
A173: 7040 | B173: 7040
A174: 2246 | B174: 2246
A175: 2406 | B175: 2406
A176: 2416 | B176: 2416
A177: 3003 | B177: 3003
A178: 2142 | B178: 2142
A179: 2457 | B179: 2457
A180: 2469 | B180: 2469
A181: 3431 | B181: 3431
A182: 1028 | B182: 1028
A183: 2436 | B183: 2436
A184: 1049 | B184: 1049
A185: 7053 | B185: 7053
A186: 3351 | B186: 3351
A187: 3328 | B187: 3328
A188: 2021 | B188: 2021
A189: 2149 | B189: 2149
A190: 2150 | B190: 2150
A191: 2425 | B191: 2425
A192: 2017 | B192: 2017
A193: 2016 | B193: 2016
A194: 1008 | B194: 1008
A195: 7045 | B195: 7045
A196: 7034 | B196: 7034
A197: 2157 | B197: 2157
A198: 2159 | B198: 2159
A199: 2161 | B199: 2161
A200: 2160 | B200: 2160
A201: 2063 | B201: 2063
A202: 1018 | B202: 1018
A203: 1000 | B203: 1000
A204: 2169 | B204: 2169
A205: 2008 | B205: 2008
A206: 7037 | B206: 7037
A207: 2176 | B207: 2176
A208: 7047 | B208: 7047
A209: 3381 | B209: 3381
A210: 3380 | B210: 3380
A211: 3335 | B211: 3335
A212: 3329 | B212: 3329
A213: 2183 | B213: 2183
A214: 3372 | B214: 3372
A215: 3375 | B215: 3375
A216: 3331 | B216: 3331
A217: 3406 | B217: 3406
A218: 3386 | B218: 3386
A219: 3347 | B219: 3347
A220: 3355 | B220: 3355
A221: 3342 | B221: 3342
A222: 3367 | B222: 3367
A223: 3010 | B223: 3010
A224: 3410 | B224: 3410
A225: 4625 | B225: 4625
A226: 3307 | B226: 3307
A227: 3361 | B227: 3361
A228: 3382 | B228: 3382
A229: 3025 | B229: 3025
A230: 3344 | B230: 3344
A231: 3346 | B231: 3346
A232: 3385 | B232: 3385
A233: 3019 | B233: 3019
A234: 3365 | B234: 3365
A235: 1009 | B235: 1009
A236: 3310 | B236: 3310
A237: 2178 | B237: 2178
A238: 2184 | B238: 2184
A239: 2097 | B239: 2097
A240: 2067 | B240: 2067
A241: 2190 | B241: 2190
A242: 1100 | B242: 1100
A243: 2192 | B243: 2192
A244: 2108 | B244: 2108
A245: 1019 | B245: 1019
A246: 2306 | B246: 2306
A247: 2482 | B247: 2482
A248: 2245 | B248: 2245
A249: 1020 | B249: 1020
A250: 1014 | B250: 1014
A251: 2019 | B251: 2019
A252: 4193 | B252: 4193
A253: 2478 | B253: 2478
A254: 2445 | B254: 2445
A255: 2278 | B255: 2278
A256: 2314 | B256: 2314
A257: 2317 | B257: 2317
A258: 3421 | B258: 3421
A259: 2227 | B259: 2227
A260: 2231 | B260: 2231
A261: 3436 | B261: 3436
A262: 1023 | B262: 1023

Sheet School List (hidden)
CA1: ok
A4: DFE
A5: Number | C5: Name
A6: 1027 | C6: Adderley Nursery School
A7: 5949 | C7: Al-Furqan Primary School
A8: 2153 | C8: Allens Croft Primary School
A9: 2062 | C9: Anderton Park Primary School
A10: 2479 | C10: Anglesey Primary School
A11: 2300 | C11: Arden Primary School
A12: 2014 | C12: Barford Primary School
A13: 7016 | C13: Baskerville School
A14: 7052 | C14: Beaufort School
A15: 2017 | C15: Beeches Infant School
A16: 2016 | C16: Beeches Junior School
A17: 2239 | C17: Bellfield Infant School (NC)
A18: 2241 | C18: Bellfield Junior School
A19: 2456 | C19: Bells Farm Primary School
A20: 2435 | C20: Benson Community School
A21: 1025 | C21: Bloomsbury Nursery School
A22: 1001 | C22: Bordesley Green East Nursery School
A23: 3353 | C23: Bournville Village Primary
A24: 7030 | C24: Braidwood School for the Deaf
A25: 1002 | C25: Brearley Nursery School
A26: 2465 | C26: Calshot Primary School
A27: 1048 | C27: Castle Vale Nursery School
A28: 2040 | C28: Cherry Orchard Primary School
A29: 1100 | C29: City of Birmingham School
A30: 3432 | C30: Clifton Primary School
A31: 2289 | C31: Cofton Primary School
A32: 2185 | C32: Colebourne Primary School
A33: 2464 | C33: Coppice Primary School
A34: 3320 | C34: Corpus Christi Catholic Primary School
A35: 2055 | C35: Cotteridge Primary School
A36: 2191 | C36: Court Farm Primary School
A37: 2284 | C37: Deykin Avenue Junior and Infant School
A38: 1802 | C38: Edith Cadbury Nursery School
A39: 2454 | C39: Elms Farm Community Primary School
A40: 3321 | C40: English Martyrs' Catholic Primary School
A41: 1026 | C41: Featherstone Nursery School
A42: 2294 | C42: Featherstone Primary School
A43: 2486 | C43: Forestdale Primary School
A44: 3435 | C44: Four Oaks Primary School
A45: 7050 | C45: Fox Hollies School
A46: 1006 | C46: Garretts Green Nursery School
A47: 2079 | C47: George Dixon Primary School
A48: 2081 | C48: Gilbertstone Primary School
A49: 1015 | C49: Goodway Nursery School
A50: 1022 | C50: Gracelands Nursery School
A51: 2087 | C51: Grendon Primary School
A52: 2466 | C52: Grove School
A53: 2091 | C53: Gunter Primary School
A54: 2093 | C54: Hall Green Infant School
A55: 7006 | C55: Hamilton School
A56: 2477 | C56: Harborne Primary School
A57: 3436 | C57: Harper Bell Seventh
A58: 2099 | C58: Hawthorn Primary School
A59: 1010 | C59: Highfield Nursery School
A60: 1021 | C60: Highters Heath Nursery School
A61: 3411 | C61: Holly Hill Methodist CofE Infant School
A62: 2474 | C62: Hollyfield Primary School
A63: 3317 | C63: Holy Family Catholic Primary School
A64: 7026 | C64: Hunters Hill
A65: 1023 | C65: Jakeman Nursery School
A66: 3352 | C66: King David Junior and Infant School
A67: 4063 | C67: Kings Heath Boys
A68: 2005 | C68: Kings Heath Primary School
A69: 5415 | C69: King's Norton Boys' School
A70: 1016 | C70: Kings Norton Nursery School
A71: 2115 | C71: Kingsland Primary School (NC)
A72: 2441 | C72: Kingsthorne Primary School
A73: 2321 | C73: Kitwell Primary School and Nursery Class
A74: 2189 | C74: Ladypool Primary School
A75: 2119 | C75: Lakey Lane Junior and Infant School
A76: 7060 | C76: Langley School
A77: 1024 | C77: Lillian de Lissa Nursery School
A78: 7062 | C78: Lindsworth School
A79: 7012 | C79: Longwill Primary Sch for Deaf Children
A80: 2420 | C80: Maney Hill Primary School
A81: 2004 | C81: Mapledene Primary School
A82: 1012 | C82: Marsh Hill Nursery School
A83: 7040 | C83: Mayfield School
A84: 2406 | C84: Minworth Junior and Infant School
A85: 2416 | C85: Moor Hall Primary School
A86: 3003 | C86: Moseley Church of England Primary School
A87: 2457 | C87: Nelson Mandela School
A88: 2142 | C88: Nelson Primary School
A89: 2469 | C89: New Hall Primary School
A90: 3431 | C90: New Oscott Primary School
A91: 1028 | C91: Newtown Nursery School
A92: 1049 | C92: Osborne Nursery School
A93: 2436 | C93: Osborne Primary School
A94: 7053 | C94: Oscott Manor School
A95: 3351 | C95: Our Lady & St Rose of Lima Cath Prim Sch
A96: 3328 | C96: Our Lady of Lourdes Catholic Prim Schl
A97: 2021 | C97: Paganel Primary School
A98: 2149 | C98: Paget Primary School
A99: 2150 | C99: Park Hill Primary School
A100: 2425 | C100: Penns Primary School
A101: 1008 | C101: Perry Beeches Nursery School
A102: 7034 | C102: Priestley Smith School
A103: 2157 | C103: Raddlebarn Primary School
A104: 2159 | C104: Redhill Primary School
A105: 2161 | C105: Rednal Hill Infant School
A106: 2160 | C106: Rednal Hill Junior School
A107: 2063 | C107: Regents Park Community Primary School
A108: 1018 | C108: Rubery Nursery School
A109: 1000 | C109: Selly Oak Nursery School
A110: 2169 | C110: Severne Junior Infant and Nursery School
A111: 2008 | C111: Shaw Hill Primary School
A112: 7037 | C112: Skilts School
A113: 2176 | C113: Somerville Primary (NC) School
A114: 7047 | C114: Springfield House Community Special Sch
A115: 3410 | C115: SS John & Monica Catholic Primary School
A116: 3381 | C116: St Alban's Catholic Primary School
A117: 3380 | C117: St Ambrose Barlow Catholic Primary Sch
A118: 3335 | C118: St Anne's Catholic Primary School
A119: 3329 | C119: St Augustine's Catholic Primary School
A120: 2183 | C120: St Benedict's Primary School
A121: 3372 | C121: St Bernadette's Catholic Primary School
A122: 3375 | C122: St Bernard's Catholic Primary School
A123: 3331 | C123: St Catherine of Siena Catholic Prim Sch
A124: 3406 | C124: St Clare's Catholic Primary School
A125: 3386 | C125: St Cuthbert's Catholic Primary School
A126: 3347 | C126: St Edmund's Catholic Primary School
A127: 3355 | C127: St Edward's Catholic Primary School
A128: 3342 | C128: St Francis Catholic Primary School
A129: 3367 | C129: St Gerard's Catholic Primary School
A130: 3010 | C130: St James Church of England Primary Sch
A131: 4625 | C131: St John Wall Catholic School
A132: 3307 | C132: St Laurence Church Junior School
A133: 3361 | C133: St Margaret Mary Catholic Primary School
A134: 3382 | C134: St Martin de Porres Catholic Primary Sch
A135: 3344 | C135: St Mary's Catholic Primary School
A136: 3025 | C136: St Mary's Church of England Primary Sch
A137: 3346 | C137: St Patrick's Catholic Primary School
A138: 3385 | C138: St Peter's Catholic Primary School
A139: 3019 | C139: St Saviour's C of E Primary School
A140: 3365 | C140: St Teresa's Catholic Primary School
A141: 1009 | C141: St Thomas Centre Nursery School
A142: 3310 | C142: St Vincent's Catholic Primary School
A143: 2178 | C143: Stanville Primary School
A144: 2184 | C144: Stechford Primary School
A145: 2097 | C145: Story Wood School
A146: 2067 | C146: Summerfield School
A147: 2190 | C147: Sundridge Primary School
A148: 7035 | C148: The Dame Ellen Pinsent School
A149: 2246 | C149: The Meadows Primary School
A150: 7045 | C150: The Pines Special School
A151: 2192 | C151: Thornton Primary School
A152: 2108 | C152: Ward End Primary School
A153: 1019 | C153: Washwood Heath Nursery School
A154: 2306 | C154: Water Mill Primary School
A155: 2482 | C155: Wattville Primary School
A156: 2245 | C156: Welsh Hse Farm Comm Sch&SpecNeedsResBase
A157: 1020 | C157: Weoley Castle Nursery School
A158: 1014 | C158: West Heath Nursery School
A159: 2019 | C159: West Heath Primary School
A160: 4193 | C160: Wheelers Lane Technology College
A161: 2478 | C161: Whitehouse Common Primary School
A162: 2445 | C162: Woodcock Hill Primary School
A163: 2278 | C163: Woodgate Primary School
A164: 2314 | C164: Woodthorpe Junior and Infant School
A165: 2317 | C165: World's End Infant and Nursery School
A166: 3421 | C166: Yardley Primary School
A167: 2227 | C167: Yardley Wood Community Primary School
A168: 2231 | C168: Yorkmead Junior and Infant School

Sheet DFES (hidden)
A1: 1027 | B1: AX001 | C1: Adderley Nursery School | E1: 2479 | F1: =IF(ISNA(VLOOKUP($E$1,$A$1:$C$329,3,0)),0,VLOOKUP($E$1,$A$1:$C$329,3,0)) -> Anglesey Primary School | Z1: 2011/12 | AA1: 2010/11 | AB1: January 2011 CENSUS | AC1: January 2010 CENSUS
A2: 5949 | B2: AX002 | C2: Al-Furqan Primary School
A3: 2153 | B3: AX004 | C3: Allens Croft Primary School
A4: 2062 | B4: AX006 | C4: Anderton Park Primary School
A5: 2479 | B5: AX007 | C5: Anglesey Primary School
A6: 2300 | B6: AX008 | C6: Arden Primary School
A7: 2014 | B7: AX00C | C7: Barford Primary School
A8: 7016 | B8: AX00E | C8: Baskerville School
A9: 7052 | B9: AX00F | C9: Beaufort School
A10: 2017 | B10: AX04L | C10: Beeches Infant School
A11: 2016 | B11: AX04M | C11: Beeches Junior School
A12: 2239 | B12: AX00G | C12: Bellfield Infant School (NC)
A13: 2241 | B13: AX00H | C13: Bellfield Junior School
A14: 2456 | B14: AX00J | C14: Bells Farm Primary School
A15: 2435 | B15: AX00K | C15: Benson Community School
A16: 1025 | B16: AX00R | C16: Bloomsbury Nursery School
A17: 1001 | B17: AX00U | C17: Bordesley Green East Nursery School
A18: 3353 | B18: AX00X | C18: Bournville Village Primary
A19: 7030 | B19: AX00Y | C19: Braidwood School for the Deaf
A20: 1002 | B20: AX00Z | C20: Brearley Nursery School
A21: 2465 | B21: AX013 | C21: Calshot Primary School
A22: 1048 | B22: AX014 | C22: Castle Vale Nursery School
A23: 2040 | B23: AX018 | C23: Cherry Orchard Primary School
A24: 1100 | B24: AX073 | C24: City of Birmingham School
A25: 3432 | B25: AX01B | C25: Clifton Primary School
A26: 2289 | B26: AX01D | C26: Cofton Primary School
A27: 2185 | B27: AX01E | C27: Colebourne Primary School
A28: 2464 | B28: AX01G | C28: Coppice Primary School
A29: 3320 | B29: AX01H | C29: Corpus Christi Catholic Primary School
A30: 2055 | B30: AX01J | C30: Cotteridge Primary School
A31: 2191 | B31: AX01L | C31: Court Farm Primary School
A32: 2284 | B32: AX01N | C32: Deykin Avenue Junior and Infant School
A33: 1802 | B33: AX01Q | C33: Edith Cadbury Nursery School
A34: 2454 | B34: AX01R | C34: Elms Farm Community Primary School
A35: 3321 | B35: AX01T | C35: English Martyrs' Catholic Primary School
A36: 1026 | B36: AX01X | C36: Featherstone Nursery School
A37: 2294 | B37: AX01W | C37: Featherstone Primary School
A38: 2486 | B38: AX01Z | C38: Forestdale Primary School
A39: 3435 | B39: AX020 | C39: Four Oaks Primary School
A40: 7050 | B40: AX021 | C40: Fox Hollies School
A41: 1006 | B41: AX023 | C41: Garretts Green Nursery School
A42: 2079 | B42: AX025 | C42: George Dixon Primary School
A43: 2081 | B43: AX026 | C43: Gilbertstone Primary School
A44: 1015 | B44: AX028 | C44: Goodway Nursery School
A45: 1022 | B45: AX029 | C45: Gracelands Nursery School
A46: 2087 | B46: AX02C | C46: Grendon Primary School
A47: 2466 | B47: AX02D | C47: Grove School
A48: 2091 | B48: AX02F | C48: Gunter Primary School
A49: 2093 | B49: AX02G | C49: Hall Green Infant School
A50: 7006 | B50: AX02K | C50: Hamilton School
A51: 2477 | B51: AX02L | C51: Harborne Primary School
A52: 3436 | B52: AX09P | C52: Harper Bell Seventh
A53: 2099 | B53: AX02M | C53: Hawthorn Primary School
A54: 1010 | B54: AX02P | C54: Highfield Nursery School
A55: 1021 | B55: AX02R | C55: Highters Heath Nursery School
A56: 3411 | B56: AX02U | C56: Holly Hill Methodist CofE Infant School
A57: 2474 | B57: AX02V | C57: Hollyfield Primary School
A58: 3317 | B58: AX02Y | C58: Holy Family Catholic Primary School
A59: 7026 | B59: AX030 | C59: Hunters Hill
A60: 1023 | B60: AX0A7 | C60: Jakeman Nursery School
A61: 3352 | B61: AX035 | C61: King David Junior and Infant School
A62: 4063 | B62: AX036 | C62: Kings Heath Boys
A63: 2005 | B63: AX037 | C63: Kings Heath Primary School
A64: 5415 | B64: AX038 | C64: King's Norton Boys' School
A65: 1016 | B65: AX03A | C65: Kings Norton Nursery School
A66: 2115 | B66: AX03B | C66: Kingsland Primary School (NC)
A67: 2441 | B67: AX03C | C67: Kingsthorne Primary School
A68: 2321 | B68: AX03D | C68: Kitwell Primary School and Nursery Class
A69: 2189 | B69: AX03E | C69: Ladypool Primary School
A70: 2119 | B70: AX03F | C70: Lakey Lane Junior and Infant School
A71: 7060 | B71: AX03G | C71: Langley School
A72: 1024 | B72: AX03J | C72: Lillian de Lissa Nursery School
A73: 7062 | B73: AX03K | C73: Lindsworth School
A74: 7012 | B74: AX03M | C74: Longwill Primary Sch for Deaf Children
A75: 2420 | B75: AX03Q | C75: Maney Hill Primary School
A76: 2004 | B76: AX03R | C76: Mapledene Primary School
A77: 1012 | B77: AX03W | C77: Marsh Hill Nursery School
A78: 7040 | B78: AX03Y | C78: Mayfield School
A79: 2406 | B79: AX040 | C79: Minworth Junior and Infant School
A80: 2416 | B80: AX041 | C80: Moor Hall Primary School
A81: 3003 | B81: AX042 | C81: Moseley Church of England Primary School
A82: 2457 | B82: AX044 | C82: Nelson Mandela School
A83: 2142 | B83: AX043 | C83: Nelson Primary School
A84: 2469 | B84: AX045 | C84: New Hall Primary School
A85: 3431 | B85: AX046 | C85: New Oscott Primary School
A86: 1028 | B86: AX047 | C86: Newtown Nursery School
A87: 1049 | B87: AX04B | C87: Osborne Nursery School
A88: 2436 | B88: AX04A | C88: Osborne Primary School
A89: 7053 | B89: AX04C | C89: Oscott Manor School
A90: 3351 | B90: AX04D | C90: Our Lady & St Rose of Lima Cath Prim Sch
A91: 3328 | B91: AX04E | C91: Our Lady of Lourdes Catholic Prim Schl
A92: 2021 | B92: AX04G | C92: Paganel Primary School
A93: 2149 | B93: AX04H | C93: Paget Primary School
A94: 2150 | B94: AX04J | C94: Park Hill Primary School
A95: 2425 | B95: AX04K | C95: Penns Primary School
A96: 1008 | B96: AX04N | C96: Perry Beeches Nursery School
A97: 7034 | B97: AX04Q | C97: Priestley Smith School
A98: 2157 | B98: AX04V | C98: Raddlebarn Primary School
A99: 2159 | B99: AX04W | C99: Redhill Primary School
A100: 2161 | B100: AX04X | C100: Rednal Hill Infant School
A101: 2160 | B101: AX04Y | C101: Rednal Hill Junior School
A102: 2063 | B102: AX04Z | C102: Regents Park Community Primary School
A103: 1018 | B103: AX052 | C103: Rubery Nursery School
A104: 1000 | B104: AX053 | C104: Selly Oak Nursery School
A105: 2169 | B105: AX054 | C105: Severne Junior Infant and Nursery School
A106: 2008 | B106: AX055 | C106: Shaw Hill Primary School
A107: 7037 | B107: AX057 | C107: Skilts School
A108: 2176 | B108: AX059 | C108: Somerville Primary (NC) School
A109: 7047 | B109: AX05A | C109: Springfield House Community Special Sch
A110: 3410 | B110: AX061 | C110: SS John & Monica Catholic Primary School
A111: 3381 | B111: AX05C | C111: St Alban's Catholic Primary School
A112: 3380 | B112: AX05D | C112: St Ambrose Barlow Catholic Primary Sch
A113: 3335 | B113: AX05E | C113: St Anne's Catholic Primary School
A114: 3329 | B114: AX05F | C114: St Augustine's Catholic Primary School
A115: 2183 | B115: AX05H | C115: St Benedict's Primary School
A116: 3372 | B116: AX05J | C116: St Bernadette's Catholic Primary School
A117: 3375 | B117: AX05K | C117: St Bernard's Catholic Primary School
A118: 3331 | B118: AX05L | C118: St Catherine of Siena Catholic Prim Sch
A119: 3406 | B119: AX05N | C119: St Clare's Catholic Primary School
A120: 3386 | B120: AX05P | C120: St Cuthbert's Catholic Primary School
A121: 3347 | B121: AX05T | C121: St Edmund's Catholic Primary School
A122: 3355 | B122: AX05U | C122: St Edward's Catholic Primary School
A123: 3342 | B123: AX05V | C123: St Francis Catholic Primary School
A124: 3367 | B124: AX05Y | C124: St Gerard's Catholic Primary School
A125: 3010 | B125: AX05Z | C125: St James Church of England Primary Sch
A126: 4625 | B126: AX063 | C126: St John Wall Catholic School
A127: 3307 | B127: AX068 | C127: St Laurence Church Junior School
A128: 3361 | B128: AX069 | C128: St Margaret Mary Catholic Primary School
A129: 3382 | B129: AX06B | C129: St Martin de Porres Catholic Primary Sch
A130: 3344 | B130: AX06E | C130: St Mary's Catholic Primary School
A131: 3025 | B131: AX06D | C131: St Mary's Church of England Primary Sch
A132: 3346 | B132: AX06H | C132: St Patrick's Catholic Primary School
A133: 3385 | B133: AX06M | C133: St Peter's Catholic Primary School
A134: 3019 | B134: AX06N | C134: St Saviour's C of E Primary School
A135: 3365 | B135: AX06P | C135: St Teresa's Catholic Primary School
A136: 1009 | B136: AX06R | C136: St Thomas Centre Nursery School
A137: 3310 | B137: AX06U | C137: St Vincent's Catholic Primary School
A138: 2178 | B138: AX06W | C138: Stanville Primary School
A139: 2184 | B139: AX06Y | C139: Stechford Primary School
A140: 2097 | B140: AX070 | C140: Story Wood School
A141: 2067 | B141: AX071 | C141: Summerfield School
A142: 2190 | B142: AX072 | C142: Sundridge Primary School
A143: 7035 | B143: AX01M | C143: The Dame Ellen Pinsent School
A144: 2246 | B144: AX03Z | C144: The Meadows Primary School
A145: 7045 | B145: AX04P | C145: The Pines Special School
A146: 2192 | B146: AX075 | C146: Thornton Primary School
A147: 2108 | B147: AX07B | C147: Ward End Primary School
A148: 1019 | B148: AX07D | C148: Washwood Heath Nursery School
A149: 2306 | B149: AX07E | C149: Water Mill Primary School
A150: 2482 | B150: AX07F | C150: Wattville Primary School
A151: 2245 | B151: AX07H | C151: Welsh Hse Farm Comm Sch&SpecNeedsResBase
A152: 1020 | B152: AX07J | C152: Weoley Castle Nursery School
A153: 1014 | B153: AX07K | C153: West Heath Nursery School
A154: 2019 | B154: AX07L | C154: West Heath Primary School
A155: 4193 | B155: AX07N | C155: Wheelers Lane Technology College
A156: 2478 | B156: AX07Q | C156: Whitehouse Common Primary School
A157: 2445 | B157: AX07U | C157: Woodcock Hill Primary School
A158: 2278 | B158: AX07V | C158: Woodgate Primary School
A159: 2314 | B159: AX07W | C159: Woodthorpe Junior and Infant School
A160: 2317 | B160: AX07X | C160: World's End Infant and Nursery School
A161: 3421 | B161: AX080 | C161: Yardley Primary School
A162: 2227 | B162: AX081 | C162: Yardley Wood Community Primary School
A163: 2231 | B163: AX083 | C163: Yorkmead Junior and Infant School
A183: FFT | C183: FAIR FUNDING TEAM

Sheet Notification (hidden)
F1: =+DFES!$E$1 -> 2479
B3: 2022/23 School Carry Forward and In Year Balance Notification
B5: School: | D5: =+DFES!$F$1 -> Anglesey Primary School
B6: DFE No: | D6: =+DFES!$E$1 -> 2479
B17: School: | C17: =$D$5 -> Anglesey Primary School
B19: For the attention of the Headteacher
B21: Dear Sir or Madam
B23: Calculation of the School's In Year and Carried Forward Revenue Balances
B25: The Local Authority has closed the accounts of your school as at 31st March 2023 and
B26: I confirm that the school's surplus / (deficit) revenue balances have been determined as follows:
B28: Brought Forward Revenue Surplus / (Deficit) Balance as at 1st April 2022
C30: £ | D30: =-IF(ISNA(VLOOKUP(DFES!$E$1,'School Closing Balances 2022-23'!$E$3:$J$220,4,0)),0,VLOOKUP(DFES!$E$1,'School Closing Balances 2022-23'!$E$3:$J$220,4,0)) -> 606379.3357
B33: In Year Revenue Surplus / (Deficit) for the Financial Year 2022-23
C35: £ | D35: =-IF(ISNA(VLOOKUP(DFES!$E$1,'School Closing Balances 2022-23'!$E$3:$J$220,5,0)),0,VLOOKUP(DFES!$E$1,'School Closing Balances 2022-23'!$E$3:$J$220,5,0)) -> 185311.46
B38: Carried Forward Revenue Surplus / (Deficit) Balance as at 31st March 2023
C40: £ | D40: =-IF(ISNA(VLOOKUP(DFES!$E$1,'School Closing Balances 2022-23'!$E$3:$J$220,6,0)),0,VLOOKUP(DFES!$E$1,'School Closing Balances 2022-23'!$E$3:$J$220,6,0)) -> 791690.7957
B43: If you do not agree with these balances, please provide evidence and notify the Schools Funding Team by via the
B44: schoolsyeaccountsclosedown@birmingham.gov.uk email address. The team will aim to investigate in 2023-24.

Sheet School Closing Balances 2022-23 (hidden)
A1: Schools Closing Balances | C1: 2022-23 | G1: *Please note: Negatives are surpluses | H1: Revenue | L1: DEVOLVED CAPITAL | O1: ENERGY EFFICIENCY GRANT
H2: Opening | I2: In-year | J2: Published C/Fwd | L2: Opening | M2: In-year | N2: Closing | O2: Opening | P2: In-year | Q2: Closing
A3: Oracle Cost Centre | B3: Type | C3: SAP | D3: LA No | E3: DFE No | F3: School Number | G3: School Name | H3: Balance | I3: (Surplus)/Defict | J3: after Adjustment | L3: Balance | M3: (Surplus)/Defict | N3: Balance | O3: Balance | P3: (Surplus)/Defict | Q3: Balance
A4: AX001 | B4: =_xlfn.XLOOKUP(A4,[9]Sheet2!A:A,[9]Sheet2!D:D,0,FALSE) -> EPA | C4: REAYW | D4: 330 | E4: 1027 | F4: 3301027 | G4: ADDERLEY Nurs | H4: 148341.298 | I4: -145919.4 | J4: 2421.89798 | L4: -5114.7 | M4: -4864 | N4: -9978.7 | O4: =-_xlfn.XLOOKUP(A4,[10]Capital!B:B,[10]Capital!AG:AG,0,FALSE) -> -11540.61 | P4: =_xlfn.XLOOKUP(A4,[10]Capital!B:B,[10]Capital!AH:AH,0,FALSE) -> 0 | Q4: =O4+P4 -> -11540.61
A5: AX00U | B5: =_xlfn.XLOOKUP(A5,[9]Sheet2!A:A,[9]Sheet2!D:D,0,FALSE) -> EPA | C5: REAYZ | D5: 330 | E5: 1001 | F5: 3301001 | G5: BORDESLEY GREEN Nurs | H5: 13592.32212 | I5: 10582.69 | J5: 24175.01212 | L5: -21804.73 | M5: -4472.5 | N5: -26277.23 | O5: =-_xlfn.XLOOKUP(A5,[10]Capital!B:B,[10]Capital!AG:AG,0,FALSE) -> -10842.52 | P5: =_xlfn.XLOOKUP(A5,[10]Capital!B:B,[10]Capital!AH:AH,0,FALSE) -> 0 | Q5: =O5+P5 -> -10842.52
A6: AX01Q | B6: =_xlfn.XLOOKUP(A6,[9]Sheet2!A:A,[9]Sheet2!D:D,0,FALSE) -> EPA | C6: REAYF | D6: 330 | E6: 1802 | F6: 3301802 | G6: EDITH CADBURY Nrsy | H6: 48973.26743 | I6: -5790.86 | J6: 43182.40743 | L6: -9212.44 | M6: -4560.25 | N6: -13772.69 | O6: =-_xlfn.XLOOKUP(A6,[10]Capital!B:B,[10]Capital!AG:AG,0,FALSE) -> -10998.99 | P6: =_xlfn.XLOOKUP(A6,[10]Capital!B:B,[10]Capital!AH:AH,0,FALSE) -> 0 | Q6: -10998.99
A7: AX07D | B7: =_xlfn.XLOOKUP(A7,[9]Sheet2!A:A,[9]Sheet2!D:D,0,FALSE) -> EPA | C7: REAZW | D7: 330 | E7: 1019 | F7: 3301019 | G7: WASHWOOD HEATH Nurs | H7: 349750.604 | I7: 34312.49 | J7: 384063.094 | L7: -29669.64 | M7: -5080 | N7: -34749.64 | O7: =-_xlfn.XLOOKUP(A7,[10]Capital!B:B,[10]Capital!AG:AG,0,FALSE) -> -11925.76 | P7: =_xlfn.XLOOKUP(A7,[10]Capital!B:B,[10]Capital!AH:AH,0,FALSE) -> 0 | Q7: -11925.76
A8: AX004 | B8: =_xlfn.XLOOKUP(A8,[9]Sheet2!A:A,[9]Sheet2!D:D,0,FALSE) -> EPA | C8: REAAH | D8: 330 | E8: 2153 | F8: 3302153 | G8: ALLENS CROFT JI | H8: -860880.0203 | I8: 663560.12 | J8: -197319.9003 | L8: -12460.96 | M8: 29702.75 | N8: 17241.79 | O8: =-_xlfn.XLOOKUP(A8,[10]Capital!B:B,[10]Capital!AG:AG,0,FALSE) -> -17241.66 | P8: =_xlfn.XLOOKUP(A8,[10]Capital!B:B,[10]Capital!AH:AH,0,FALSE) -> 0 | Q8: -17241.66
A9: AX007 | B9: =_xlfn.XLOOKUP(A9,[9]Sheet2!A:A,[9]Sheet2!D:D,0,FALSE) -> EPA | C9: REAAM | D9: 330 | E9: 2479 | F9: 3302479 | G9: ANGLESEY JI NC | H9: -606379.3357 | I9: -185311.46 | J9: -791690.7957 | L9: -12241.75 | M9: 9987.56 | N9: -2254.19 | O9: =-_xlfn.XLOOKUP(A9,[10]Capital!B:B,[10]Capital!AG:AG,0,FALSE) -> -24362.96 | P9: =_xlfn.XLOOKUP(A9,[10]Capital!B:B,[10]Capital!AH:AH,0,FALSE) -> 0 | Q9: -24362.96
A10: AX00G | B10: =_xlfn.XLOOKUP(A10,[9]Sheet2!A:A,[9]Sheet2!D:D,0,FALSE) -> EPA | C10: REAAY | D10: 330 | E10: 2239 | F10: 3302239 | G10: BELLFIELD I NC | H10: -262055.4013 | I10: 123894.55 | J10: -138160.8513 | L10: -10744.4 | M10: 1242.31 | N10: -9502.09 | O10: =-_xlfn.XLOOKUP(A10,[10]Capital!B:B,[10]Capital!AG:AG,0,FALSE) -> -13711.1 | P10: =_xlfn.XLOOKUP(A10,[10]Capital!B:B,[10]Capital!AH:AH,0,FALSE) -> 0 | Q10: -13711.1
A11: AX00K | B11: =_xlfn.XLOOKUP(A11,[9]Sheet2!A:A,[9]Sheet2!D:D,0,FALSE) -> EPA | C11: REABB | D11: 330 | E11: 2435 | F11: 3302435 | G11: BENSON JI NC | H11: -587426.9455 | I11: 132123.91 | J11: -455303.0355 | L11: -5685.69 | M11: -8798.12 | N11: -14483.81 | O11: =-_xlfn.XLOOKUP(A11,[10]Capital!B:B,[10]Capital!AG:AG,0,FALSE) -> -18555.59 | P11: =_xlfn.XLOOKUP(A11,[10]Capital!B:B,[10]Capital!AH:AH,0,FALSE) -> 0 | Q11: -18555.59
A12: AX013 | B12: =_xlfn.XLOOKUP(A12,[9]Sheet2!A:A,[9]Sheet2!D:D,0,FALSE) -> EPA | C12: REACB | D12: 330 | E12: 2465 | F12: 3302465 | G12: CALSHOT JI NC | H12: -64328.77497 | I12: -28093.15 | J12: -92421.92497 | L12: -10528.83 | M12: 13722.96 | N12: 3194.13 | O12: =-_xlfn.XLOOKUP(A12,[10]Capital!B:B,[10]Capital!AG:AG,0,FALSE) -> -18786.28 | P12: =_xlfn.XLOOKUP(A12,[10]Capital!B:B,[10]Capital!AH:AH,0,FALSE) -> 0 | Q12: -18786.28
A13: AX018 | B13: =_xlfn.XLOOKUP(A13,[9]Sheet2!A:A,[9]Sheet2!D:D,0,FALSE) -> EPA | C13: REACF | D13: 330 | E13: 2040 | F13: 3302040 | G13: CHERRY ORCHARD JI NC | H13: -112202.054 | I13: 118629.57 | J13: 6427.515981 | L13: 0 | M13: -7060.06 | N13: -7060.06 | O13: =-_xlfn.XLOOKUP(A13,[10]Capital!B:B,[10]Capital!AG:AG,0,FALSE) -> -19203.53 | P13: =_xlfn.XLOOKUP(A13,[10]Capital!B:B,[10]Capital!AH:AH,0,FALSE) -> 0 | Q13: -19203.53
A14: AX01B | B14: =_xlfn.XLOOKUP(A14,[9]Sheet2!A:A,[9]Sheet2!D:D,0,FALSE) -> EPA | C14: REACN | D14: 330 | E14: 3432 | F14: 3303432 | G14: CLIFTON JI NC | H14: -654009.8654 | I14: 317278.12 | J14: -336731.7454 | L14: -1364.43 | M14: -9820.25 | N14: -11184.68 | O14: =-_xlfn.XLOOKUP(A14,[10]Capital!B:B,[10]Capital!AG:AG,0,FALSE) -> -26886.51 | P14: =_xlfn.XLOOKUP(A14,[10]Capital!B:B,[10]Capital!AH:AH,0,FALSE) -> 0 | Q14: -26886.51
A15: AX01E | B15: =_xlfn.XLOOKUP(A15,[9]Sheet2!A:A,[9]Sheet2!D:D,0,FALSE) -> EPA | C15: REACQ | D15: 330 | E15: 2185 | F15: 3302185 | G15: COLEBOURNE JI | H15: -233913.2491 | I15: 10249.52 | J15: -223663.7291 | L15: -9116.49 | M15: -9087.25 | N15: -18203.74 | O15: =-_xlfn.XLOOKUP(A15,[10]Capital!B:B,[10]Capital!AG:AG,0,FALSE) -> -19071.13 | P15: =_xlfn.XLOOKUP(A15,[10]Capital!B:B,[10]Capital!AH:AH,0,FALSE) -> 0 | Q15: -19071.13
A16: AX01G | B16: =_xlfn.XLOOKUP(A16,[9]Sheet2!A:A,[9]Sheet2!D:D,0,FALSE) -> EPA | C16: REACY | D16: 330 | E16: 2464 | F16: 3302464 | G16: COPPICE JI | H16: -91418.27429 | I16: 332044.67 | J16: 240626.3957 | L16: -3275.21 | M16: 2915.75 | N16: -359.46 | O16: =-_xlfn.XLOOKUP(A16,[10]Capital!B:B,[10]Capital!AG:AG,0,FALSE) -> -18445.26 | P16: =_xlfn.XLOOKUP(A16,[10]Capital!B:B,[10]Capital!AH:AH,0,FALSE) -> 0 | Q16: -18445.26
A17: AX01R | B17: =_xlfn.XLOOKUP(A17,[9]Sheet2!A:A,[9]Sheet2!D:D,0,FALSE) -> EPA | C17: READJ | D17: 330 | E17: 2454 | F17: 3302454 | G17: ELMS FARM JI NC | H17: -356218.3866 | I17: -90989.54 | J17: -447207.9266 | L17: -11307.29 | M17: 1380.38 | N17: -9926.91 | O17: =-_xlfn.XLOOKUP(A17,[10]Capital!B:B,[10]Capital!AG:AG,0,FALSE) -> -17049.08 | P17: =_xlfn.XLOOKUP(A17,[10]Capital!B:B,[10]Capital!AH:AH,0,FALSE) -> 0 | Q17: -17049.08
A18: AX01T | B18: =_xlfn.XLOOKUP(A18,[9]Sheet2!A:A,[9]Sheet2!D:D,0,FALSE) -> EPA | C18: READK | D18: 330 | E18: 3321 | F18: 3303321 | G18: ENGLISH MARTYRS RC JI | H18: -344067.6296 | I18: 141066.85 | J18: -203000.7796 | L18: 0 | M18: 0 | N18: 0 | O18: =-_xlfn.XLOOKUP(A18,[10]Capital!B:B,[10]Capital!AG:AG,0,FALSE) -> 0 | P18: =_xlfn.XLOOKUP(A18,[10]Capital!B:B,[10]Capital!AH:AH,0,FALSE) -> 0 | Q18: 0
A19: AX020 | B19: =_xlfn.XLOOKUP(A19,[9]Sheet2!A:A,[9]Sheet2!D:D,0,FALSE) -> EPA | C19: READX | D19: 330 | E19: 3435 | F19: 3303435 | G19: FOUR OAKS JI | H19: -198865.2856 | I19: 23160.8 | J19: -175704.4856 | L19: -25504.81 | M19: 4495.3 | N19: -21009.51 | O19: =-_xlfn.XLOOKUP(A19,[10]Capital!B:B,[10]Capital!AG:AG,0,FALSE) -> -18445.26 | P19: =_xlfn.XLOOKUP(A19,[10]Capital!B:B,[10]Capital!AH:AH,0,FALSE) -> 0 | Q19: -18445.26
A20: AX026 | B20: =_xlfn.XLOOKUP(A20,[9]Sheet2!A:A,[9]Sheet2!D:D,0,FALSE) -> EPA | C20: REAEA | D20: 330 | E20: 2081 | F20: 3302081 | G20: GILBERTSTONE JI NC | H20: -143141.8557 | I20: 78126.9 | J20: -65014.95574 | L20: -16871.45 | M20: -8587.75 | N20: -25459.2 | O20: =-_xlfn.XLOOKUP(A20,[10]Capital!B:B,[10]Capital!AG:AG,0,FALSE) -> -18180.47 | P20: =_xlfn.XLOOKUP(A20,[10]Capital!B:B,[10]Capital!AH:AH,0,FALSE) -> 0 | Q20: -18180.47
A21: AX02G | B21: =_xlfn.XLOOKUP(A21,[9]Sheet2!A:A,[9]Sheet2!D:D,0,FALSE) -> EPA | C21: REAEN | D21: 330 | E21: 2093 | F21: 3302093 | G21: HALL GREEN I NC | H21: -271201.6684 | I21: -6037.51 | J21: -277239.1784 | L21: -36475.08 | M21: -8356 | N21: -44831.08 | O21: =-_xlfn.XLOOKUP(A21,[10]Capital!B:B,[10]Capital!AG:AG,0,FALSE) -> -17767.23 | P21: =_xlfn.XLOOKUP(A21,[10]Capital!B:B,[10]Capital!AH:AH,0,FALSE) -> 0 | Q21: -17767.23
A22: AX02M | B22: =_xlfn.XLOOKUP(A22,[9]Sheet2!A:A,[9]Sheet2!D:D,0,FALSE) -> EPA | C22: REAEW | D22: 330 | E22: 2099 | F22: 3302099 | G22: HAWTHORN JI | H22: -276063.6514 | I22: 36895.79 | J22: -239167.8614 | L22: -9548.63 | M22: 5125.5 | N22: -4423.13 | O22: =-_xlfn.XLOOKUP(A22,[10]Capital!B:B,[10]Capital!AG:AG,0,FALSE) -> -14501.46 | P22: =_xlfn.XLOOKUP(A22,[10]Capital!B:B,[10]Capital!AH:AH,0,FALSE) -> 0 | Q22: -14501.46
A23: AX03E | B23: =_xlfn.XLOOKUP(A23,[9]Sheet2!A:A,[9]Sheet2!D:D,0,FALSE) -> EPA | C23: REAGE | D23: 330 | E23: 2189 | F23: 3302189 | G23: LADYPOOL JI NC | H23: -96107.14656 | I23: -39896.98 | J23: -136004.1266 | L23: -13325 | M23: -7892.5 | N23: -21217.5 | O23: =-_xlfn.XLOOKUP(A23,[10]Capital!B:B,[10]Capital!AG:AG,0,FALSE) -> -16940.76 | P23: =_xlfn.XLOOKUP(A23,[10]Capital!B:B,[10]Capital!AH:AH,0,FALSE) -> 0 | Q23: -16940.76
A24: AX03F | B24: =_xlfn.XLOOKUP(A24,[9]Sheet2!A:A,[9]Sheet2!D:D,0,FALSE) -> EPA | C24: REAGF | D24: 330 | E24: 2119 | F24: 3302119 | G24: LAKEY LANE JI NC | H24: -4139.533979 | I24: 91181.01 | J24: 87041.47602 | L24: -12268.9 | M24: 11757.94 | N24: -510.96 | O24: =-_xlfn.XLOOKUP(A24,[10]Capital!B:B,[10]Capital!AG:AG,0,FALSE) -> -18726.1 | P24: =_xlfn.XLOOKUP(A24,[10]Capital!B:B,[10]Capital!AH:AH,0,FALSE) -> 0 | Q24: -18726.1
A25: AX03Q | B25: =_xlfn.XLOOKUP(A25,[9]Sheet2!A:A,[9]Sheet2!D:D,0,FALSE) -> EPA | C25: REAGP | D25: 330 | E25: 2420 | F25: 3302420 | G25: MANEY HILL JI | H25: -406384.2999 | I25: 98924.24 | J25: -307460.0599 | L25: -29336.82 | M25: -5656.25 | N25: -34993.07 | O25: =-_xlfn.XLOOKUP(A25,[10]Capital!B:B,[10]Capital!AG:AG,0,FALSE) -> -17843.46 | P25: =_xlfn.XLOOKUP(A25,[10]Capital!B:B,[10]Capital!AH:AH,0,FALSE) -> 0 | Q25: -17843.46
A26: AX040 | B26: =_xlfn.XLOOKUP(A26,[9]Sheet2!A:A,[9]Sheet2!D:D,0,FALSE) -> EPA | C26: REAHC | D26: 330 | E26: 2406 | F26: 3302406 | G26: MINWORTH JI | H26: -210915.6227 | I26: -69380.7 | J26: -280296.3227 | L26: -47270.35 | M26: -27077.06 | N26: -74347.41 | O26: =-_xlfn.XLOOKUP(A26,[10]Capital!B:B,[10]Capital!AG:AG,0,FALSE) -> -14152.42 | P26: =_xlfn.XLOOKUP(A26,[10]Capital!B:B,[10]Capital!AH:AH,0,FALSE) -> 0 | Q26: -14152.42
A27: AX04A | B27: =_xlfn.XLOOKUP(A27,[9]Sheet2!A:A,[9]Sheet2!D:D,0,FALSE) -> EPA | C27: REAHY | D27: 330 | E27: 2436 | F27: 3302436 | G27: OSBORNE JI | H27: 0 | I27: 0 | J27: 0 | L27: -9592.43 | M27: 0 | N27: -9592.43 | O27: =-_xlfn.XLOOKUP(A27,[10]Capital!B:B,[10]Capital!AG:AG,0,FALSE) -> 0 | P27: =_xlfn.XLOOKUP(A27,[10]Capital!B:B,[10]Capital!AH:AH,0,FALSE) -> 0 | Q27: 0
A28: AX04D | B28: =_xlfn.XLOOKUP(A28,[9]Sheet2!A:A,[9]Sheet2!D:D,0,FALSE) -> EPA | C28: REAHZ | D28: 330 | E28: 3351 | F28: 3303351 | G28: OUR LADY AND ST ROSE RC JI NC | H28: -167375.5872 | I28: -7794.56 | J28: -175170.1472 | L28: 0 | M28: 0 | N28: 0 | O28: =-_xlfn.XLOOKUP(A28,[10]Capital!B:B,[10]Capital!AG:AG,0,FALSE) -> 0 | P28: =_xlfn.XLOOKUP(A28,[10]Capital!B:B,[10]Capital!AH:AH,0,FALSE) -> 0 | Q28: 0
A29: AX04E | B29: =_xlfn.XLOOKUP(A29,[9]Sheet2!A:A,[9]Sheet2!D:D,0,FALSE) -> EPA | C29: REAJB | D29: 330 | E29: 3328 | F29: 3303328 | G29: OUR LADY OF LOURDES RC JI NC | H29: -233425.3174 | I29: -68914.86 | J29: -302340.1774 | L29: 0 | M29: -109.72 | N29: -109.72 | O29: =-_xlfn.XLOOKUP(A29,[10]Capital!B:B,[10]Capital!AG:AG,0,FALSE) -> 0 | P29: =_xlfn.XLOOKUP(A29,[10]Capital!B:B,[10]Capital!AH:AH,0,FALSE) -> 0 | Q29: 0
A30: AX04G | B30: =_xlfn.XLOOKUP(A30,[9]Sheet2!A:A,[9]Sheet2!D:D,0,FALSE) -> EPA | C30: REAJE | D30: 330 | E30: 2021 | F30: 3302021 | G30: PAGANEL JI NC | H30: -390955.5116 | I30: 25503.74 | J30: -365451.7716 | L30: -34544.18 | M30: 4052.12 | N30: -30492.06 | O30: =-_xlfn.XLOOKUP(A30,[10]Capital!B:B,[10]Capital!AG:AG,0,FALSE) -> -17203.55 | P30: =_xlfn.XLOOKUP(A30,[10]Capital!B:B,[10]Capital!AH:AH,0,FALSE) -> 0 | Q30: -17203.55
A31: AX04Y | B31: =_xlfn.XLOOKUP(A31,[9]Sheet2!A:A,[9]Sheet2!D:D,0,FALSE) -> EPA | C31: REAKB | D31: 330 | E31: 2160 | F31: 3302160 | G31: REDNAL HILL J | H31: -258616.6787 | I31: -24574.48 | J31: -283191.1587 | L31: -11346.94 | M31: 5838.95 | N31: -5507.99 | O31: =-_xlfn.XLOOKUP(A31,[10]Capital!B:B,[10]Capital!AG:AG,0,FALSE) -> -17061.12 | P31: =_xlfn.XLOOKUP(A31,[10]Capital!B:B,[10]Capital!AH:AH,0,FALSE) -> 0 | Q31: -17061.12
A32: AX04Z | B32: =_xlfn.XLOOKUP(A32,[9]Sheet2!A:A,[9]Sheet2!D:D,0,FALSE) -> EPA | C32: REAKC | D32: 330 | E32: 2063 | F32: 3302063 | G32: REGENTS PARK JI NC | H32: -227057.2018 | I32: 68324.17 | J32: -158733.0318 | L32: -29994.93 | M32: -10318 | N32: -40312.93 | O32: =-_xlfn.XLOOKUP(A32,[10]Capital!B:B,[10]Capital!AG:AG,0,FALSE) -> -21265.7 | P32: =_xlfn.XLOOKUP(A32,[10]Capital!B:B,[10]Capital!AH:AH,0,FALSE) -> 0 | Q32: -21265.7
A33: AX055 | B33: =_xlfn.XLOOKUP(A33,[9]Sheet2!A:A,[9]Sheet2!D:D,0,FALSE) -> EPA | C33: REAKL | D33: 330 | E33: 2008 | F33: 3302008 | G33: SHAW HILL JI NC | H33: -344457.5118 | I33: 63181.46 | J33: -281276.0518 | L33: -2535.57 | M33: -9058 | N33: -11593.57 | O33: =-_xlfn.XLOOKUP(A33,[10]Capital!B:B,[10]Capital!AG:AG,0,FALSE) -> -19018.98 | P33: =_xlfn.XLOOKUP(A33,[10]Capital!B:B,[10]Capital!AH:AH,0,FALSE) -> 0 | Q33: -19018.98
A34: AX059 | B34: =_xlfn.XLOOKUP(A34,[9]Sheet2!A:A,[9]Sheet2!D:D,0,FALSE) -> EPA | C34: REAKT | D34: 330 | E34: 2176 | F34: 3302176 | G34: SOMERVILLE JI NC | H34: -266346.9551 | I34: 14776.73 | J34: -251570.2251 | L34: -33722.54 | M34: -11944.75 | N34: -45667.29 | O34: =-_xlfn.XLOOKUP(A34,[10]Capital!B:B,[10]Capital!AG:AG,0,FALSE) -> -24166.37 | P34: =_xlfn.XLOOKUP(A34,[10]Capital!B:B,[10]Capital!AH:AH,0,FALSE) -> 0 | Q34: -24166.37
A35: AX05D | B35: =_xlfn.XLOOKUP(A35,[9]Sheet2!A:A,[9]Sheet2!D:D,0,FALSE) -> EPA | C35: REAKY | D35: 330 | E35: 3380 | F35: 3303380 | G35: ST AMBROSE BARLOW RC JI | H35: -175282.9571 | I35: 110136.03 | J35: -65146.92714 | L35: 0 | M35: 0 | N35: 0 | O35: =-_xlfn.XLOOKUP(A35,[10]Capital!B:B,[10]Capital!AG:AG,0,FALSE) -> 0 | P35: =_xlfn.XLOOKUP(A35,[10]Capital!B:B,[10]Capital!AH:AH,0,FALSE) -> 0 | Q35: 0
A36: AX05E | B36: =_xlfn.XLOOKUP(A36,[9]Sheet2!A:A,[9]Sheet2!D:D,0,FALSE) -> EPA | C36: REALA | D36: 330 | E36: 3335 | F36: 3303335 | G36: ST ANNE'S RC JI | H36: -6449.263271 | I36: -34843.45 | J36: -41292.71327 | L36: 0 | M36: 0 | N36: 0 | O36: =-_xlfn.XLOOKUP(A36,[10]Capital!B:B,[10]Capital!AG:AG,0,FALSE) -> 0 | P36: =_xlfn.XLOOKUP(A36,[10]Capital!B:B,[10]Capital!AH:AH,0,FALSE) -> 0 | Q36: 0
A37: AX05J | B37: =_xlfn.XLOOKUP(A37,[9]Sheet2!A:A,[9]Sheet2!D:D,0,FALSE) -> EPA | C37: REALE | D37: 330 | E37: 3372 | F37: 3303372 | G37: ST BERNADETTE'S RC JI NC | H37: -325046.3786 | I37: -29021.86 | J37: -354068.2386 | L37: 0 | M37: 0 | N37: 0 | O37: =-_xlfn.XLOOKUP(A37,[10]Capital!B:B,[10]Capital!AG:AG,0,FALSE) -> 0 | P37: =_xlfn.XLOOKUP(A37,[10]Capital!B:B,[10]Capital!AH:AH,0,FALSE) -> 0 | Q37: 0
A38: AX05U | B38: =_xlfn.XLOOKUP(A38,[9]Sheet2!A:A,[9]Sheet2!D:D,0,FALSE) -> EPA | C38: REALR | D38: 330 | E38: 3355 | F38: 3303355 | G38: ST EDWARD'S RC JI | H38: -159010.5189 | I38: -6432.01 | J38: -165442.5289 | L38: 0 | M38: 0 | N38: 0 | O38: =-_xlfn.XLOOKUP(A38,[10]Capital!B:B,[10]Capital!AG:AG,0,FALSE) -> 0 | P38: =_xlfn.XLOOKUP(A38,[10]Capital!B:B,[10]Capital!AH:AH,0,FALSE) -> 0 | Q38: 0
A39: AX05Y | B39: =_xlfn.XLOOKUP(A39,[9]Sheet2!A:A,[9]Sheet2!D:D,0,FALSE) -> EPA | C39: REALY | D39: 330 | E39: 3367 | F39: 3303367 | G39: ST GERARD'S RC JI NC | H39: -178624.0991 | I39: 58085.23 | J39: -120538.8691 | L39: 0 | M39: 0 | N39: 0 | O39: =-_xlfn.XLOOKUP(A39,[10]Capital!B:B,[10]Capital!AG:AG,0,FALSE) -> 0 | P39: =_xlfn.XLOOKUP(A39,[10]Capital!B:B,[10]Capital!AH:AH,0,FALSE) -> 0 | Q39: 0
A40: AX061 | B40: =_xlfn.XLOOKUP(A40,[9]Sheet2!A:A,[9]Sheet2!D:D,0,FALSE) -> EPA | C40: REAMB | D40: 330 | E40: 3410 | F40: 3303410 | G40: ST JOHN & ST MONICA RC JI | H40: -232746.9018 | I40: 65731.52 | J40: -167015.3818 | L40: 0 | M40: 0 | N40: 0 | O40: =-_xlfn.XLOOKUP(A40,[10]Capital!B:B,[10]Capital!AG:AG,0,FALSE) -> 0 | P40: =_xlfn.XLOOKUP(A40,[10]Capital!B:B,[10]Capital!AH:AH,0,FALSE) -> 0 | Q40: 0
A41: AX069 | B41: =_xlfn.XLOOKUP(A41,[9]Sheet2!A:A,[9]Sheet2!D:D,0,FALSE) -> EPA | C41: REAMN | D41: 330 | E41: 3361 | F41: 3303361 | G41: ST MARGARET MARY RC JI | H41: -306675.2788 | I41: 101528 | J41: -205147.2788 | L41: 0 | M41: 0 | N41: 0 | O41: =-_xlfn.XLOOKUP(A41,[10]Capital!B:B,[10]Capital!AG:AG,0,FALSE) -> 0 | P41: =_xlfn.XLOOKUP(A41,[10]Capital!B:B,[10]Capital!AH:AH,0,FALSE) -> 0 | Q41: 0
A42: AX06E | B42: =_xlfn.XLOOKUP(A42,[9]Sheet2!A:A,[9]Sheet2!D:D,0,FALSE) -> EPA | C42: REAMW | D42: 330 | E42: 3344 | F42: 3303344 | G42: ST MARY'S RC (B17) JI | H42: -229849.4148 | I42: 1026.82 | J42: -228822.5948 | L42: 0 | M42: 0 | N42: 0 | O42: =-_xlfn.XLOOKUP(A42,[10]Capital!B:B,[10]Capital!AG:AG,0,FALSE) -> 0 | P42: =_xlfn.XLOOKUP(A42,[10]Capital!B:B,[10]Capital!AH:AH,0,FALSE) -> 0 | Q42: 0
A43: AX06M | B43: =_xlfn.XLOOKUP(A43,[9]Sheet2!A:A,[9]Sheet2!D:D,0,FALSE) -> EPA | C43: REANG | D43: 330 | E43: 3385 | F43: 3303385 | G43: ST PETER'S RC JI | H43: -257424.0591 | I43: 100128.98 | J43: -157295.0791 | L43: 0 | M43: 0 | N43: 0 | O43: =-_xlfn.XLOOKUP(A43,[10]Capital!B:B,[10]Capital!AG:AG,0,FALSE) -> 0 | P43: =_xlfn.XLOOKUP(A43,[10]Capital!B:B,[10]Capital!AH:AH,0,FALSE) -> 0 | Q43: 0
A44: AX06N | B44: =_xlfn.XLOOKUP(A44,[9]Sheet2!A:A,[9]Sheet2!D:D,0,FALSE) -> EPA | C44: REANH | D44: 330 | E44: 3019 | F44: 3303019 | G44: ST SAVIOUR'S CE JI | H44: -553681.9582 | I44: 9842.3 | J44: -543839.6582 | L44: -9068.35 | M44: -39649.31 | N44: -48717.66 | O44: =-_xlfn.XLOOKUP(A44,[10]Capital!B:B,[10]Capital!AG:AG,0,FALSE) -> -18204.54 | P44: =_xlfn.XLOOKUP(A44,[10]Capital!B:B,[10]Capital!AH:AH,0,FALSE) -> 0 | Q44: -18204.54
A45: AX06W | B45: =_xlfn.XLOOKUP(A45,[9]Sheet2!A:A,[9]Sheet2!D:D,0,FALSE) -> EPA | C45: REANP | D45: 330 | E45: 2178 | F45: 3302178 | G45: STANVILLE JI NC | H45: -151201.2155 | I45: 70925.33 | J45: -80275.88545 | L45: -3872.2 | M45: -6693.25 | N45: -10565.45 | O45: =-_xlfn.XLOOKUP(A45,[10]Capital!B:B,[10]Capital!AG:AG,0,FALSE) -> -14802.36 | P45: =_xlfn.XLOOKUP(A45,[10]Capital!B:B,[10]Capital!AH:AH,0,FALSE) -> 0 | Q45: -14802.36
A46: AX070 | B46: =_xlfn.XLOOKUP(A46,[9]Sheet2!A:A,[9]Sheet2!D:D,0,FALSE) -> EPA | C46: REAJP | D46: 330 | E46: 2097 | F46: 3302097 | G46: STORY WOOD SCHOOL AND CHILDREN'S CENTRE JI NC | H46: -349024.6838 | I46: -21580.09 | J46: -370604.7738 | L46: -45403.04 | M46: -6497.5 | N46: -51900.54 | O46: =-_xlfn.XLOOKUP(A46,[10]Capital!B:B,[10]Capital!AG:AG,0,FALSE) -> -14453.32 | P46: =_xlfn.XLOOKUP(A46,[10]Capital!B:B,[10]Capital!AH:AH,0,FALSE) -> 0 | Q46: -14453.32
A47: AX072 | B47: =_xlfn.XLOOKUP(A47,[9]Sheet2!A:A,[9]Sheet2!D:D,0,FALSE) -> EPA | C47: REANW | D47: 330 | E47: 2190 | F47: 3302190 | G47: SUNDRIDGE JI | H47: -293701.188 | I47: 96040.19 | J47: -197660.998 | L47: -3151.44 | M47: -3103.75 | N47: -6255.19 | O47: =-_xlfn.XLOOKUP(A47,[10]Capital!B:B,[10]Capital!AG:AG,0,FALSE) -> -13751.22 | P47: =_xlfn.XLOOKUP(A47,[10]Capital!B:B,[10]Capital!AH:AH,0,FALSE) -> 0 | Q47: -13751.22
A48: AX07E | B48: =_xlfn.XLOOKUP(A48,[9]Sheet2!A:A,[9]Sheet2!D:D,0,FALSE) -> EPA | C48: REAPM | D48: 330 | E48: 2306 | F48: 3302306 | G48: WATERMILL JI | H48: -289080.6825 | I48: -30991.53 | J48: -320072.2125 | L48: -23297.28 | M48: 7542.47 | N48: -15754.81 | O48: =-_xlfn.XLOOKUP(A48,[10]Capital!B:B,[10]Capital!AG:AG,0,FALSE) -> -13550.62 | P48: =_xlfn.XLOOKUP(A48,[10]Capital!B:B,[10]Capital!AH:AH,0,FALSE) -> 0 | Q48: -13550.62
A49: AX07F | B49: =_xlfn.XLOOKUP(A49,[9]Sheet2!A:A,[9]Sheet2!D:D,0,FALSE) -> EPA | C49: REAPP | D49: 330 | E49: 2482 | F49: 3302482 | G49: WATTVILLE JI NC | H49: -148545.7804 | I49: 111013.51 | J49: -37532.27043 | L49: -35775.4 | M49: -8972.5 | N49: -44747.9 | O49: =-_xlfn.XLOOKUP(A49,[10]Capital!B:B,[10]Capital!AG:AG,0,FALSE) -> -18866.52 | P49: =_xlfn.XLOOKUP(A49,[10]Capital!B:B,[10]Capital!AH:AH,0,FALSE) -> 0 | Q49: -18866.52
A50: AX07H | B50: =_xlfn.XLOOKUP(A50,[9]Sheet2!A:A,[9]Sheet2!D:D,0,FALSE) -> EPA | C50: REAPR | D50: 330 | E50: 2245 | F50: 3302245 | G50: WELSH HOUSE FARM JI NC | H50: -216720.5316 | I50: -112540.54 | J50: -329261.0716 | L50: -25513.87 | M50: -6551.5 | N50: -32065.37 | O50: =-_xlfn.XLOOKUP(A50,[10]Capital!B:B,[10]Capital!AG:AG,0,FALSE) -> -14549.61 | P50: =_xlfn.XLOOKUP(A50,[10]Capital!B:B,[10]Capital!AH:AH,0,FALSE) -> 0 | Q50: -14549.61
A51: AX07Q | B51: =_xlfn.XLOOKUP(A51,[9]Sheet2!A:A,[9]Sheet2!D:D,0,FALSE) -> EPA | C51: REAPZ | D51: 330 | E51: 2478 | F51: 3302478 | G51: WHITEHOUSE COMMON JI NC | H51: -220793.4273 | I51: -68956.18 | J51: -289749.6073 | L51: -18387.21 | M51: 1994.33 | N51: -16392.88 | O51: =-_xlfn.XLOOKUP(A51,[10]Capital!B:B,[10]Capital!AG:AG,0,FALSE) -> -19031.01 | P51: =_xlfn.XLOOKUP(A51,[10]Capital!B:B,[10]Capital!AH:AH,0,FALSE) -> 0 | Q51: -19031.01
A52: AX07U | B52: =_xlfn.XLOOKUP(A52,[9]Sheet2!A:A,[9]Sheet2!D:D,0,FALSE) -> EPA | C52: REARC | D52: 330 | E52: 2445 | F52: 3302445 | G52: WOODCOCK HILL JI | H52: -88954.46155 | I52: 86114.18 | J52: -2840.28155 | L52: -7743.76 | M52: -6289.38 | N52: -14033.14 | O52: =-_xlfn.XLOOKUP(A52,[10]Capital!B:B,[10]Capital!AG:AG,0,FALSE) -> -14082.21 | P52: =_xlfn.XLOOKUP(A52,[10]Capital!B:B,[10]Capital!AH:AH,0,FALSE) -> 0 | Q52: -14082.21
A53: AX07V | B53: =_xlfn.XLOOKUP(A53,[9]Sheet2!A:A,[9]Sheet2!D:D,0,FALSE) -> EPA | C53: REARD | D53: 330 | E53: 2278 | F53: 3302278 | G53: WOODGATE JI | H53: -273002.6272 | I53: -75018.50283 | J53: -348021.13 | L53: -16853.75 | M53: -8376.25 | N53: -25230 | O53: =-_xlfn.XLOOKUP(A53,[10]Capital!B:B,[10]Capital!AG:AG,0,FALSE) -> -17803.34 | P53: =_xlfn.XLOOKUP(A53,[10]Capital!B:B,[10]Capital!AH:AH,0,FALSE) -> 0 | Q53: -17803.34
A54: AX07X | B54: =_xlfn.XLOOKUP(A54,[9]Sheet2!A:A,[9]Sheet2!D:D,0,FALSE) -> EPA | C54: REARG | D54: 330 | E54: 2317 | F54: 3302317 | G54: WORLDS END I NC | H54: -103938.2581 | I54: 14190.39 | J54: -89747.86811 | L54: -7645.28 | M54: 6475 | N54: -1170.28 | O54: =-_xlfn.XLOOKUP(A54,[10]Capital!B:B,[10]Capital!AG:AG,0,FALSE) -> -16266.74 | P54: =_xlfn.XLOOKUP(A54,[10]Capital!B:B,[10]Capital!AH:AH,0,FALSE) -> 0 | Q54: -16266.74
A55: AX080 | B55: =_xlfn.XLOOKUP(A55,[9]Sheet2!A:A,[9]Sheet2!D:D,0,FALSE) -> EPA | C55: REARQ | D55: 330 | E55: 3421 | F55: 3303421 | G55: YARDLEY JI | H55: -529822.2111 | I55: -53980.16 | J55: -583802.3711 | L55: -1355 | M55: 13987.91 | N55: 12632.91 | O55: =-_xlfn.XLOOKUP(A55,[10]Capital!B:B,[10]Capital!AG:AG,0,FALSE) -> -26689.92 | P55: =_xlfn.XLOOKUP(A55,[10]Capital!B:B,[10]Capital!AH:AH,0,FALSE) -> 0 | Q55: -26689.92
A56: AX038 | B56: =_xlfn.XLOOKUP(A56,[9]Sheet2!A:A,[9]Sheet2!D:D,0,FALSE) -> EPA | C56: REAVX | D56: 330 | E56: 5415 | F56: 3305415 | G56: KINGS NORTON BOYS Sec (16+) | H56: -446243.89 | I56: -115911.01 | J56: -562154.9 | L56: -17917.6 | M56: -16499.69 | N56: -34417.29 | O56: =-_xlfn.XLOOKUP(A56,[10]Capital!B:B,[10]Capital!AG:AG,0,FALSE) -> -31755.07 | P56: =_xlfn.XLOOKUP(A56,[10]Capital!B:B,[10]Capital!AH:AH,0,FALSE) -> 0 | Q56: -31755.07
A57: AX00Y | B57: =_xlfn.XLOOKUP(A57,[9]Sheet2!A:A,[9]Sheet2!D:D,0,FALSE) -> EPA | C57: REAXN | D57: 330 | E57: 7030 | F57: 3307030 | G57: BRAIDWOOD Spec | H57: -245775.7751 | I57: -149695.46 | J57: -395471.2351 | L57: -15401.74 | M57: 5098.04 | N57: -10303.7 | O57: =-_xlfn.XLOOKUP(A57,[10]Capital!B:B,[10]Capital!AG:AG,0,FALSE) -> -16499.44 | P57: =_xlfn.XLOOKUP(A57,[10]Capital!B:B,[10]Capital!AH:AH,0,FALSE) -> 0 | Q57: -16499.44
A58: AX073 | B58: =_xlfn.XLOOKUP(A58,[9]Sheet2!A:A,[9]Sheet2!D:D,0,FALSE) -> EPA | C58: REAAB | D58: 330 | E58: 1100 | F58: 3301100 | G58: CITY OF BIRMINGHAM SCHOOL | H58: -291935.1392 | I58: =J58-H58 -> 352105.55 | J58: =327170.410781969-267000 -> 60170.41078 | L58: -19465.81 | M58: 53036.31 | N58: 33570.5 | O58: =-_xlfn.XLOOKUP(A58,[10]Capital!B:B,[10]Capital!AG:AG,0,FALSE) -> -40526.3 | P58: =_xlfn.XLOOKUP(A58,[10]Capital!B:B,[10]Capital!AH:AH,0,FALSE) -> 0 | Q58: -40526.3
A59: AX01M | B59: =_xlfn.XLOOKUP(A59,[9]Sheet2!A:A,[9]Sheet2!D:D,0,FALSE) -> EPA | C59: REAXV | D59: 330 | E59: 7035 | F59: 3307035 | G59: DAME ELLEN PINSENT Spec | H59: -536504.8908 | I59: 57066.42 | J59: -479438.4708 | L59: -46567.75 | M59: -11593.75 | N59: -58161.5 | O59: =-_xlfn.XLOOKUP(A59,[10]Capital!B:B,[10]Capital!AG:AG,0,FALSE) -> -23540.5 | P59: =_xlfn.XLOOKUP(A59,[10]Capital!B:B,[10]Capital!AH:AH,0,FALSE) -> 0 | Q59: -23540.5
A60: AX021 | B60: =_xlfn.XLOOKUP(A60,[9]Sheet2!A:A,[9]Sheet2!D:D,0,FALSE) -> EPA | C60: REAXW | D60: 330 | E60: 7050 | F60: 3307050 | G60: FOX HOLLIES Spec | H60: -664193.6267 | I60: -164853.37 | J60: -829046.9967 | L60: -2327.7 | M60: -9467.5 | N60: -11795.2 | O60: =-_xlfn.XLOOKUP(A60,[10]Capital!B:B,[10]Capital!AG:AG,0,FALSE) -> -19749.16 | P60: =_xlfn.XLOOKUP(A60,[10]Capital!B:B,[10]Capital!AH:AH,0,FALSE) -> 0 | Q60: -19749.16
A61: AX030 | B61: =_xlfn.XLOOKUP(A61,[9]Sheet2!A:A,[9]Sheet2!D:D,0,FALSE) -> EPA | C61: REAYA | D61: 330 | E61: 7026 | F61: 3307026 | G61: HUNTERS HILL Spec | H61: -100440.0032 | I61: -3210.68 | J61: -103650.6832 | L61: -7729.22 | M61: 0 | N61: -7729.22 | O61: =-_xlfn.XLOOKUP(A61,[10]Capital!B:B,[10]Capital!AG:AG,0,FALSE) -> 0 | P61: =_xlfn.XLOOKUP(A61,[10]Capital!B:B,[10]Capital!AH:AH,0,FALSE) -> 0 | Q61: 0
A62: AX03G | B62: =_xlfn.XLOOKUP(A62,[9]Sheet2!A:A,[9]Sheet2!D:D,0,FALSE) -> EPA | C62: REAYD | D62: 330 | E62: 7060 | F62: 3307060 | G62: LANGLEY Spec | H62: -284676.6188 | I62: 247188.08 | J62: -37488.53877 | L62: -71670.09 | M62: 9201.12 | N62: -62468.97 | O62: =-_xlfn.XLOOKUP(A62,[10]Capital!B:B,[10]Capital!AG:AG,0,FALSE) -> -19658.89 | P62: =_xlfn.XLOOKUP(A62,[10]Capital!B:B,[10]Capital!AH:AH,0,FALSE) -> 0 | Q62: -19658.89
A63: AX03M | B63: =_xlfn.XLOOKUP(A63,[9]Sheet2!A:A,[9]Sheet2!D:D,0,FALSE) -> EPA | C63: REAYG | D63: 330 | E63: 7012 | F63: 3307012 | G63: LONGWILL Spec | H63: -12455.66905 | I63: 2664.33 | J63: -9791.339051 | L63: -4986.62 | M63: -4127.62 | N63: -9114.24 | O63: =-_xlfn.XLOOKUP(A63,[10]Capital!B:B,[10]Capital!AG:AG,0,FALSE) -> -14712.09 | P63: =_xlfn.XLOOKUP(A63,[10]Capital!B:B,[10]Capital!AH:AH,0,FALSE) -> 0 | Q63: -14712.09
A64: AX04P | B64: =_xlfn.XLOOKUP(A64,[9]Sheet2!A:A,[9]Sheet2!D:D,0,FALSE) -> EPA | C64: REAYJ | D64: 330 | E64: 7045 | F64: 3307045 | G64: PINES Spec | H64: -1109092.219 | I64: 71931.3 | J64: -1037160.919 | L64: -19956.17 | M64: -14732.5 | N64: -34688.67 | O64: =-_xlfn.XLOOKUP(A64,[10]Capital!B:B,[10]Capital!AG:AG,0,FALSE) -> -29137.24 | P64: =_xlfn.XLOOKUP(A64,[10]Capital!B:B,[10]Capital!AH:AH,0,FALSE) -> 0 | Q64: -29137.24
A65: AX00R | B65: =_xlfn.XLOOKUP(A65,[9]Sheet2!A:A,[9]Sheet2!D:D,0,FALSE) -> Non Chq Bk | C65: REAYY | D65: 330 | E65: 1025 | F65: 3301025 | G65: BLOOMSBURY Nurs | H65: -186106.6315 | I65: 43819.43 | J65: -142287.2015 | L65: -5059.96 | M65: -4874.12 | N65: -9934.08 | O65: =-_xlfn.XLOOKUP(A65,[10]Capital!B:B,[10]Capital!AG:AG,0,FALSE) -> -11558.66 | P65: =_xlfn.XLOOKUP(A65,[10]Capital!B:B,[10]Capital!AH:AH,0,FALSE) -> 0 | Q65: -11558.66
A66: AX00Z | B66: =_xlfn.XLOOKUP(A66,[9]Sheet2!A:A,[9]Sheet2!D:D,0,FALSE) -> Non Chq Bk | C66: REAZA | D66: 330 | E66: 1002 | F66: 3301002 | G66: BREARLEY ST Nurs | H66: -54611.88538 | I66: -84152.05 | J66: -138763.9354 | L66: -18713.6 | M66: -4965.25 | N66: -23678.85 | O66: =-_xlfn.XLOOKUP(A66,[10]Capital!B:B,[10]Capital!AG:AG,0,FALSE) -> -11721.15 | P66: =_xlfn.XLOOKUP(A66,[10]Capital!B:B,[10]Capital!AH:AH,0,FALSE) -> 0 | Q66: -11721.15
A67: AX014 | B67: =_xlfn.XLOOKUP(A67,[9]Sheet2!A:A,[9]Sheet2!D:D,0,FALSE) -> Non Chq Bk | C67: REAZB | D67: 330 | E67: 1048 | F67: 3301048 | G67: CASTLE VALE Nurs | H67: -353386.5416 | I67: -2659.06 | J67: -356045.6016 | L67: -31116.29 | M67: -5167.75 | N67: -36284.04 | O67: =-_xlfn.XLOOKUP(A67,[10]Capital!B:B,[10]Capital!AG:AG,0,FALSE) -> -12082.23 | P67: =_xlfn.XLOOKUP(A67,[10]Capital!B:B,[10]Capital!AH:AH,0,FALSE) -> 0 | Q67: -12082.23
A68: AX01X | B68: =_xlfn.XLOOKUP(A68,[9]Sheet2!A:A,[9]Sheet2!D:D,0,FALSE) -> Non Chq Bk | C68: REAZC | D68: 330 | E68: 1026 | F68: 3301026 | G68: FEATHERSTONE Nurs | H68: -220314.9305 | I68: -58808.13 | J68: -279123.0605 | L68: -14301.45 | M68: 2423.68 | N68: -11877.77 | O68: =-_xlfn.XLOOKUP(A68,[10]Capital!B:B,[10]Capital!AG:AG,0,FALSE) -> -11011.02 | P68: =_xlfn.XLOOKUP(A68,[10]Capital!B:B,[10]Capital!AH:AH,0,FALSE) -> 0 | Q68: -11011.02
A69: AX023 | B69: =_xlfn.XLOOKUP(A69,[9]Sheet2!A:A,[9]Sheet2!D:D,0,FALSE) -> Non Chq Bk | C69: REAZD | D69: 330 | E69: 1006 | F69: 3301006 | G69: GARRETTS GREEN Nurs | H69: -184195.2555 | I69: 117842.53 | J69: -66352.72545 | L69: -9792.05 | M69: -4735.75 | N69: -14527.8 | O69: =-_xlfn.XLOOKUP(A69,[10]Capital!B:B,[10]Capital!AG:AG,0,FALSE) -> -11311.92 | P69: =_xlfn.XLOOKUP(A69,[10]Capital!B:B,[10]Capital!AH:AH,0,FALSE) -> 0 | Q69: =O69+P69 -> -11311.92
A70: AX028 | B70: =_xlfn.XLOOKUP(A70,[9]Sheet2!A:A,[9]Sheet2!D:D,0,FALSE) -> Non Chq Bk | C70: REAZE | D70: 330 | E70: 1015 | F70: 3301015 | G70: GOODWAY Nurs | H70: -113744.0115 | I70: -57219.74 | J70: -170963.7515 | L70: -5900.5 | M70: -4837 | N70: -10737.5 | O70: =-_xlfn.XLOOKUP(A70,[10]Capital!B:B,[10]Capital!AG:AG,0,FALSE) -> -11492.46 | P70: =_xlfn.XLOOKUP(A70,[10]Capital!B:B,[10]Capital!AH:AH,0,FALSE) -> 0 | Q70: -11492.46
A71: AX029 | B71: =_xlfn.XLOOKUP(A71,[9]Sheet2!A:A,[9]Sheet2!D:D,0,FALSE) -> Non Chq Bk | C71: REAZF | D71: 330 | E71: 1022 | F71: 3301022 | G71: GRACELANDS Nurs | H71: -36646.85271 | I71: -110432.64 | J71: -147079.4927 | L71: -18165.09 | M71: -4675 | N71: -22840.09 | O71: =-_xlfn.XLOOKUP(A71,[10]Capital!B:B,[10]Capital!AG:AG,0,FALSE) -> -11203.6 | P71: =_xlfn.XLOOKUP(A71,[10]Capital!B:B,[10]Capital!AH:AH,0,FALSE) -> 0 | Q71: -11203.6
A72: AX02P | B72: =_xlfn.XLOOKUP(A72,[9]Sheet2!A:A,[9]Sheet2!D:D,0,FALSE) -> Non Chq Bk | C72: REAZG | D72: 330 | E72: 1010 | F72: 3301010 | G72: HIGHFIELD Nurs | H72: -567485.3496 | I72: -27917.16 | J72: -595402.5096 | L72: -23691.82 | M72: -1367.3 | N72: -25059.12 | O72: =-_xlfn.XLOOKUP(A72,[10]Capital!B:B,[10]Capital!AG:AG,0,FALSE) -> -11997.98 | P72: =_xlfn.XLOOKUP(A72,[10]Capital!B:B,[10]Capital!AH:AH,0,FALSE) -> 0 | Q72: -11997.98
A73: AX02R | B73: =_xlfn.XLOOKUP(A73,[9]Sheet2!A:A,[9]Sheet2!D:D,0,FALSE) -> Non Chq Bk | C73: REAZH | D73: 330 | E73: 1021 | F73: 3301021 | G73: HIGHTERS HEATH Nurs | H73: -56183.43599 | I73: -32018.56 | J73: -88201.99599 | L73: -5429.56 | M73: -4324 | N73: -9753.56 | O73: =-_xlfn.XLOOKUP(A73,[10]Capital!B:B,[10]Capital!AG:AG,0,FALSE) -> 0 | P73: =_xlfn.XLOOKUP(A73,[10]Capital!B:B,[10]Capital!AH:AH,0,FALSE) -> 0 | Q73: 0
A74: AX0A7 | B74: =_xlfn.XLOOKUP(A74,[9]Sheet2!A:A,[9]Sheet2!D:D,0,FALSE) -> Non Chq Bk | C74: REAZJ | D74: 330 | E74: 1023 | F74: 3301023 | G74: JAKEMAN Nurs | H74: 46176.39128 | I74: -70870.39 | J74: -24693.99872 | L74: -5825.52 | M74: -2801.93 | N74: -8627.45 | O74: =-_xlfn.XLOOKUP(A74,[10]Capital!B:B,[10]Capital!AG:AG,0,FALSE) -> -10981.94 | P74: =_xlfn.XLOOKUP(A74,[10]Capital!B:B,[10]Capital!AH:AH,0,FALSE) -> 0 | Q74: -10981.94
A75: AX03A | B75: =_xlfn.XLOOKUP(A75,[9]Sheet2!A:A,[9]Sheet2!D:D,0,FALSE) -> Non Chq Bk | C75: REAZK | D75: 330 | E75: 1016 | F75: 3301016 | G75: KINGS NORTON Nurs | H75: -67952.4534 | I75: 75510.19 | J75: 7557.736601 | L75: -2471.56 | M75: -127.19 | N75: -2598.75 | O75: =-_xlfn.XLOOKUP(A75,[10]Capital!B:B,[10]Capital!AG:AG,0,FALSE) -> -11443.12 | P75: =_xlfn.XLOOKUP(A75,[10]Capital!B:B,[10]Capital!AH:AH,0,FALSE) -> 0 | Q75: -11443.12
A76: AX03J | B76: =_xlfn.XLOOKUP(A76,[9]Sheet2!A:A,[9]Sheet2!D:D,0,FALSE) -> Non Chq Bk | C76: REAZL | D76: 330 | E76: 1024 | F76: 3301024 | G76: LILLIAN DE LISSA Nurs | H76: 391861.3596 | I76: 57662.41 | J76: 449523.7696 | L76: -18221.12 | M76: -4729 | N76: -22950.12 | O76: =-_xlfn.XLOOKUP(A76,[10]Capital!B:B,[10]Capital!AG:AG,0,FALSE) -> -11299.89 | P76: =_xlfn.XLOOKUP(A76,[10]Capital!B:B,[10]Capital!AH:AH,0,FALSE) -> 0 | Q76: -11299.89
A77: AX03W | B77: =_xlfn.XLOOKUP(A77,[9]Sheet2!A:A,[9]Sheet2!D:D,0,FALSE) -> Non Chq Bk | C77: REAZM | D77: 330 | E77: 1012 | F77: 3301012 | G77: MARSH HILL Nurs | H77: -214344.3908 | I77: -73122.3 | J77: -287466.6908 | L77: -20323.7 | M77: -3812.5 | N77: -24136.2 | O77: =-_xlfn.XLOOKUP(A77,[10]Capital!B:B,[10]Capital!AG:AG,0,FALSE) -> -11480.43 | P77: =_xlfn.XLOOKUP(A77,[10]Capital!B:B,[10]Capital!AH:AH,0,FALSE) -> 0 | Q77: -11480.43
A78: AX047 | B78: =_xlfn.XLOOKUP(A78,[9]Sheet2!A:A,[9]Sheet2!D:D,0,FALSE) -> Non Chq Bk | C78: REAZN | D78: 330 | E78: 1028 | F78: 3301028 | G78: NEWTOWN Nurs | H78: 58932.04291 | I78: -180203.99 | J78: -121271.9471 | L78: -18849.24 | M78: -4674.32 | N78: -23523.56 | O78: =-_xlfn.XLOOKUP(A78,[10]Capital!B:B,[10]Capital!AG:AG,0,FALSE) -> -11202.4 | P78: =_xlfn.XLOOKUP(A78,[10]Capital!B:B,[10]Capital!AH:AH,0,FALSE) -> 0 | Q78: -11202.4
A79: AX04B | B79: =_xlfn.XLOOKUP(A79,[9]Sheet2!A:A,[9]Sheet2!D:D,0,FALSE) -> Non Chq Bk | C79: REAZP | D79: 330 | E79: 1049 | F79: 3301049 | G79: OSBORNE Nurs | H79: -338926.9948 | I79: 47101.31 | J79: -291825.6848 | L79: -16686.36 | M79: -4722.25 | N79: -21408.61 | O79: =-_xlfn.XLOOKUP(A79,[10]Capital!B:B,[10]Capital!AG:AG,0,FALSE) -> -11287.85 | P79: =_xlfn.XLOOKUP(A79,[10]Capital!B:B,[10]Capital!AH:AH,0,FALSE) -> 0 | Q79: -11287.85
A80: AX04N | B80: =_xlfn.XLOOKUP(A80,[9]Sheet2!A:A,[9]Sheet2!D:D,0,FALSE) -> Non Chq Bk | C80: REAZQ | D80: 330 | E80: 1008 | F80: 3301008 | G80: PERRY BEECHES Nurs | H80: -128087.7489 | I80: 19945.37 | J80: -108142.3789 | L80: -6941.21 | M80: -1101.72 | N80: -8042.93 | O80: =-_xlfn.XLOOKUP(A80,[10]Capital!B:B,[10]Capital!AG:AG,0,FALSE) -> -11275.82 | P80: =_xlfn.XLOOKUP(A80,[10]Capital!B:B,[10]Capital!AH:AH,0,FALSE) -> 0 | Q80: -11275.82
A81: AX052 | B81: =_xlfn.XLOOKUP(A81,[9]Sheet2!A:A,[9]Sheet2!D:D,0,FALSE) -> Non Chq Bk | C81: REAZT | D81: 330 | E81: 1018 | F81: 3301018 | G81: RUBERY Nurs | H81: -60483.25783 | I81: 62723.55 | J81: 2240.292172 | L81: -5578.07 | M81: -5134 | N81: -10712.07 | O81: =-_xlfn.XLOOKUP(A81,[10]Capital!B:B,[10]Capital!AG:AG,0,FALSE) -> -12022.05 | P81: =_xlfn.XLOOKUP(A81,[10]Capital!B:B,[10]Capital!AH:AH,0,FALSE) -> 0 | Q81: -12022.05
A82: AX053 | B82: =_xlfn.XLOOKUP(A82,[9]Sheet2!A:A,[9]Sheet2!D:D,0,FALSE) -> Non Chq Bk | C82: REAZU | D82: 330 | E82: 1000 | F82: 3301000 | G82: SELLY OAK Nurs | H82: -18803.24322 | I82: 68123.93 | J82: 49320.68678 | L82: -10280.78 | M82: -4714.83 | N82: -14995.61 | O82: =-_xlfn.XLOOKUP(A82,[10]Capital!B:B,[10]Capital!AG:AG,0,FALSE) -> -11274.61 | P82: =_xlfn.XLOOKUP(A82,[10]Capital!B:B,[10]Capital!AH:AH,0,FALSE) -> 0 | Q82: -11274.61
A83: AX06R | B83: =_xlfn.XLOOKUP(A83,[9]Sheet2!A:A,[9]Sheet2!D:D,0,FALSE) -> Non Chq Bk | C83: REAZR | D83: 330 | E83: 1009 | F83: 3301009 | G83: ST THOMAS Nurs | H83: 712538.9063 | I83: 510350.28 | J83: 1222889.186 | L83: -25429.76 | M83: -4884.25 | N83: -30314.01 | O83: =-_xlfn.XLOOKUP(A83,[10]Capital!B:B,[10]Capital!AG:AG,0,FALSE) -> -11576.72 | P83: =_xlfn.XLOOKUP(A83,[10]Capital!B:B,[10]Capital!AH:AH,0,FALSE) -> 0 | Q83: -11576.72
A84: AX07J | B84: =_xlfn.XLOOKUP(A84,[9]Sheet2!A:A,[9]Sheet2!D:D,0,FALSE) -> Non Chq Bk | C84: REAZX | D84: 330 | E84: 1020 | F84: 3301020 | G84: WEOLEY CASTLE Nurs | H84: -7346.719411 | I84: 49014.17 | J84: 41667.45059 | L84: -22973.76 | M84: -5518.75 | N84: -28492.51 | O84: =-_xlfn.XLOOKUP(A84,[10]Capital!B:B,[10]Capital!AG:AG,0,FALSE) -> -12708.1 | P84: =_xlfn.XLOOKUP(A84,[10]Capital!B:B,[10]Capital!AH:AH,0,FALSE) -> 0 | Q84: -12708.1
A85: AX07K | B85: =_xlfn.XLOOKUP(A85,[9]Sheet2!A:A,[9]Sheet2!D:D,0,FALSE) -> Non Chq Bk | C85: REAZY | D85: 330 | E85: 1014 | F85: 3301014 | G85: WEST HEATH Nurs | H85: -131482.2042 | I85: -28004.41 | J85: -159486.6142 | L85: -23093.77 | M85: 37539.7 | N85: 14445.93 | O85: =-_xlfn.XLOOKUP(A85,[10]Capital!B:B,[10]Capital!AG:AG,0,FALSE) -> -11721.15 | P85: =_xlfn.XLOOKUP(A85,[10]Capital!B:B,[10]Capital!AH:AH,0,FALSE) -> 0 | Q85: -11721.15
A86: AX002 | B86: =_xlfn.XLOOKUP(A86,[9]Sheet2!A:A,[9]Sheet2!D:D,0,FALSE) -> Non Chq Bk | C86: REAAE | D86: 330 | E86: 5949 | F86: 3305949 | G86: AL-FURQAN JI | H86: -665695.9907 | I86: 65461.54 | J86: -600234.4507 | L86: 0 | M86: 0 | N86: 0 | O86: =-_xlfn.XLOOKUP(A86,[10]Capital!B:B,[10]Capital!AG:AG,0,FALSE) -> 0 | P86: =_xlfn.XLOOKUP(A86,[10]Capital!B:B,[10]Capital!AH:AH,0,FALSE) -> 0 | Q86: 0
A87: AX006 | B87: =_xlfn.XLOOKUP(A87,[9]Sheet2!A:A,[9]Sheet2!D:D,0,FALSE) -> Non Chq Bk | C87: REAAK | D87: 330 | E87: 2062 | F87: 3302062 | G87: ANDERTON PARK JI NC | H87: -615862.1743 | I87: 331523.31 | J87: -284338.8643 | L87: -16832 | M87: -9190.75 | N87: -26022.75 | O87: =-_xlfn.XLOOKUP(A87,[10]Capital!B:B,[10]Capital!AG:AG,0,FALSE) -> -19255.68 | P87: =_xlfn.XLOOKUP(A87,[10]Capital!B:B,[10]Capital!AH:AH,0,FALSE) -> 0 | Q87: -19255.68
A88: AX008 | B88: =_xlfn.XLOOKUP(A88,[9]Sheet2!A:A,[9]Sheet2!D:D,0,FALSE) -> Non Chq Bk | C88: REAAN | D88: 330 | E88: 2300 | F88: 3302300 | G88: ARDEN JI NC | H88: -310748.6069 | I88: 80386.23 | J88: -230362.3769 | L88: -4845.05 | M88: 4841 | N88: -4.05 | O88: =-_xlfn.XLOOKUP(A88,[10]Capital!B:B,[10]Capital!AG:AG,0,FALSE) -> -23430.17 | P88: =_xlfn.XLOOKUP(A88,[10]Capital!B:B,[10]Capital!AH:AH,0,FALSE) -> 0 | Q88: -23430.17
A89: AX00C | B89: =_xlfn.XLOOKUP(A89,[9]Sheet2!A:A,[9]Sheet2!D:D,0,FALSE) -> Non Chq Bk | C89: REAAW | D89: 330 | E89: 2014 | F89: 3302014 | G89: BARFORD JI NC | H89: -567306.2111 | I89: 437273.5 | J89: -130032.7111 | L89: -38323.38 | M89: -8559.62 | N89: -46883 | O89: =-_xlfn.XLOOKUP(A89,[10]Capital!B:B,[10]Capital!AG:AG,0,FALSE) -> -18130.32 | P89: =_xlfn.XLOOKUP(A89,[10]Capital!B:B,[10]Capital!AH:AH,0,FALSE) -> 0 | Q89: -18130.32
A90: AX00H | B90: =_xlfn.XLOOKUP(A90,[9]Sheet2!A:A,[9]Sheet2!D:D,0,FALSE) -> Non Chq Bk | C90: REAAZ | D90: 330 | E90: 2241 | F90: 3302241 | G90: BELLFIELD J | H90: -364166.9142 | I90: 73118.61 | J90: -291048.3042 | L90: -4916.18 | M90: -2974.75 | N90: -7890.93 | O90: =-_xlfn.XLOOKUP(A90,[10]Capital!B:B,[10]Capital!AG:AG,0,FALSE) -> -16238.66 | P90: =_xlfn.XLOOKUP(A90,[10]Capital!B:B,[10]Capital!AH:AH,0,FALSE) -> 0 | Q90: -16238.66
A91: AX00J | B91: =_xlfn.XLOOKUP(A91,[9]Sheet2!A:A,[9]Sheet2!D:D,0,FALSE) -> Non Chq Bk | C91: REABA | D91: 330 | E91: 2456 | F91: 3302456 | G91: BELLS FARM JI | H91: -119499.0879 | I91: 70952.09 | J91: -48546.99789 | L91: -861 | M91: -6261.25 | N91: -7122.25 | O91: =-_xlfn.XLOOKUP(A91,[10]Capital!B:B,[10]Capital!AG:AG,0,FALSE) -> -14032.06 | P91: =_xlfn.XLOOKUP(A91,[10]Capital!B:B,[10]Capital!AH:AH,0,FALSE) -> 0 | Q91: -14032.06
A92: AX00Q | B92: =_xlfn.XLOOKUP(A92,[9]Sheet2!A:A,[9]Sheet2!D:D,0,FALSE) -> Chq Bk | C92: REABK | D92: 330 | E92: 2254 | F92: 3302254 | G92: BLAKESLEY HALL JI | H92: 137954.6149 | I92: 350258.17 | J92: 488212.7849 | L92: -10873.75 | M92: -10356.25 | N92: -21230 | O92: =-_xlfn.XLOOKUP(A92,[10]Capital!B:B,[10]Capital!AG:AG,0,FALSE) -> -21333.9 | P92: =_xlfn.XLOOKUP(A92,[10]Capital!B:B,[10]Capital!AH:AH,0,FALSE) -> 0 | Q92: -21333.9
A93: AX00X | B93: =_xlfn.XLOOKUP(A93,[9]Sheet2!A:A,[9]Sheet2!D:D,0,FALSE) -> Non Chq Bk | C93: REABR | D93: 330 | E93: 3353 | F93: 3303353 | G93: Bournville Village Primary (formerly Bournville Junior) | H93: -464990.3691 | I93: 95311.86 | J93: -369678.5091 | L93: 0 | M93: 0 | N93: 0 | O93: =-_xlfn.XLOOKUP(A93,[10]Capital!B:B,[10]Capital!AG:AG,0,FALSE) -> 0 | P93: =_xlfn.XLOOKUP(A93,[10]Capital!B:B,[10]Capital!AH:AH,0,FALSE) -> 0 | Q93: 0
A94: AX01D | B94: =_xlfn.XLOOKUP(A94,[9]Sheet2!A:A,[9]Sheet2!D:D,0,FALSE) -> Non Chq Bk | C94: REACP | D94: 330 | E94: 2289 | F94: 3302289 | G94: COFTON JI | H94: 124969.4347 | I94: -62077.17 | J94: 62892.26472 | L94: -15045.54 | M94: 8654.96 | N94: -6390.58 | O94: =-_xlfn.XLOOKUP(A94,[10]Capital!B:B,[10]Capital!AG:AG,0,FALSE) -> -17331.93 | P94: =_xlfn.XLOOKUP(A94,[10]Capital!B:B,[10]Capital!AH:AH,0,FALSE) -> 0 | Q94: -17331.93
A95: AX01H | B95: =_xlfn.XLOOKUP(A95,[9]Sheet2!A:A,[9]Sheet2!D:D,0,FALSE) -> Non Chq Bk | C95: REACZ | D95: 330 | E95: 3320 | F95: 3303320 | G95: CORPUS CHRISTI RC JI | H95: -511397.8225 | I95: -203643.46 | J95: -715041.2825 | L95: 0 | M95: 0 | N95: 0 | O95: =-_xlfn.XLOOKUP(A95,[10]Capital!B:B,[10]Capital!AG:AG,0,FALSE) -> 0 | P95: =_xlfn.XLOOKUP(A95,[10]Capital!B:B,[10]Capital!AH:AH,0,FALSE) -> 0 | Q95: 0
A96: AX01J | B96: =_xlfn.XLOOKUP(A96,[9]Sheet2!A:A,[9]Sheet2!D:D,0,FALSE) -> Non Chq Bk | C96: READA | D96: 330 | E96: 2055 | F96: 3302055 | G96: COTTERIDGE JI NC | H96: -416677.0165 | I96: 22080.06 | J96: -394596.9565 | L96: -39581.18 | M96: -5722.75 | N96: -45303.93 | O96: =-_xlfn.XLOOKUP(A96,[10]Capital!B:B,[10]Capital!AG:AG,0,FALSE) -> -18421.19 | P96: =_xlfn.XLOOKUP(A96,[10]Capital!B:B,[10]Capital!AH:AH,0,FALSE) -> 0 | Q96: -18421.19
A97: AX01L | B97: =_xlfn.XLOOKUP(A97,[9]Sheet2!A:A,[9]Sheet2!D:D,0,FALSE) -> Non Chq Bk | C97: READD | D97: 330 | E97: 2191 | F97: 3302191 | G97: COURT FARM JI | H97: -184839.6394 | I97: -2161.62 | J97: -187001.2594 | L97: -13956.33 | M97: -6557.12 | N97: -20513.45 | O97: =-_xlfn.XLOOKUP(A97,[10]Capital!B:B,[10]Capital!AG:AG,0,FALSE) -> -14559.64 | P97: =_xlfn.XLOOKUP(A97,[10]Capital!B:B,[10]Capital!AH:AH,0,FALSE) -> 0 | Q97: -14559.64
A98: AX01N | B98: =_xlfn.XLOOKUP(A98,[9]Sheet2!A:A,[9]Sheet2!D:D,0,FALSE) -> Non Chq Bk | C98: READG | D98: 330 | E98: 2284 | F98: 3302284 | G98: DEYKIN AVENUE JI | H98: -82152.31068 | I98: 105423.84 | J98: 23271.52932 | L98: -9224.2 | M98: 1311.25 | N98: -7912.95 | O98: =-_xlfn.XLOOKUP(A98,[10]Capital!B:B,[10]Capital!AG:AG,0,FALSE) -> -14152.42 | P98: =_xlfn.XLOOKUP(A98,[10]Capital!B:B,[10]Capital!AH:AH,0,FALSE) -> 0 | Q98: -14152.42
A99: AX01W | B99: =_xlfn.XLOOKUP(A99,[9]Sheet2!A:A,[9]Sheet2!D:D,0,FALSE) -> Non Chq Bk | C99: READN | D99: 330 | E99: 2294 | F99: 3302294 | G99: FEATHERSTONE JI | H99: -1090111.879 | I99: 435415.02 | J99: -654696.859 | L99: -12266.74 | M99: -8567.5 | N99: -20834.24 | O99: =-_xlfn.XLOOKUP(A99,[10]Capital!B:B,[10]Capital!AG:AG,0,FALSE) -> -18144.36 | P99: =_xlfn.XLOOKUP(A99,[10]Capital!B:B,[10]Capital!AH:AH,0,FALSE) -> 0 | Q99: -18144.36
A100: AX01Z | B100: =_xlfn.XLOOKUP(A100,[9]Sheet2!A:A,[9]Sheet2!D:D,0,FALSE) -> Non Chq Bk | C100: READY | D100: 330 | E100: 2486 | F100: 3302486 | G100: FORESTDALE JI NC | H100: -194865.2011 | I100: 1133.68 | J100: -193731.5211 | L100: -13840.18 | M100: 27185.48 | N100: 13345.3 | O100: =-_xlfn.XLOOKUP(A100,[10]Capital!B:B,[10]Capital!AG:AG,0,FALSE) -> -14244.7 | P100: =_xlfn.XLOOKUP(A100,[10]Capital!B:B,[10]Capital!AH:AH,0,FALSE) -> 0 | Q100: -14244.7
A101: AX025 | B101: =_xlfn.XLOOKUP(A101,[9]Sheet2!A:A,[9]Sheet2!D:D,0,FALSE) -> Non Chq Bk | C101: READZ | D101: 330 | E101: 2079 | F101: 3302079 | G101: GEORGE DIXON JI | H101: -32316.14935 | I101: 103088.22 | J101: 70772.07065 | L101: -10482.71 | M101: -8455 | N101: -18937.71 | O101: =-_xlfn.XLOOKUP(A101,[10]Capital!B:B,[10]Capital!AG:AG,0,FALSE) -> -17943.76 | P101: =_xlfn.XLOOKUP(A101,[10]Capital!B:B,[10]Capital!AH:AH,0,FALSE) -> 0 | Q101: -17943.76
A102: AX02C | B102: =_xlfn.XLOOKUP(A102,[9]Sheet2!A:A,[9]Sheet2!D:D,0,FALSE) -> Non Chq Bk | C102: REAEH | D102: 330 | E102: 2087 | F102: 3302087 | G102: GRENDON JI NC | H102: -226730.2632 | I102: 57326.56 | J102: -169403.7032 | L102: -3986.37 | M102: -978.68 | N102: -4965.05 | O102: =-_xlfn.XLOOKUP(A102,[10]Capital!B:B,[10]Capital!AG:AG,0,FALSE) -> -17061.12 | P102: =_xlfn.XLOOKUP(A102,[10]Capital!B:B,[10]Capital!AH:AH,0,FALSE) -> 0 | Q102: -17061.12
A103: AX02D | B103: =_xlfn.XLOOKUP(A103,[9]Sheet2!A:A,[9]Sheet2!D:D,0,FALSE) -> Non Chq Bk | C103: REAEK | D103: 330 | E103: 2466 | F103: 3302466 | G103: GROVE JI NC | H103: -762845.8622 | I103: 39110.3 | J103: -723735.5622 | L103: -18976.65 | M103: 6266.85 | N103: -12709.8 | O103: =-_xlfn.XLOOKUP(A103,[10]Capital!B:B,[10]Capital!AG:AG,0,FALSE) -> -23362.37 | P103: =_xlfn.XLOOKUP(A103,[10]Capital!B:B,[10]Capital!AH:AH,0,FALSE) -> 0 | Q103: -23362.37
A104: AX02F | B104: =_xlfn.XLOOKUP(A104,[9]Sheet2!A:A,[9]Sheet2!D:D,0,FALSE) -> Non Chq Bk | C104: REAEM | D104: 330 | E104: 2091 | F104: 3302091 | G104: GUNTER JI NC | H104: 139676.4126 | I104: -7584.94 | J104: 132091.4726 | L104: -33948.61 | M104: -6250 | N104: -40198.61 | O104: =-_xlfn.XLOOKUP(A104,[10]Capital!B:B,[10]Capital!AG:AG,0,FALSE) -> -14012 | P104: =_xlfn.XLOOKUP(A104,[10]Capital!B:B,[10]Capital!AH:AH,0,FALSE) -> 0 | Q104: -14012
A105: AX02L | B105: =_xlfn.XLOOKUP(A105,[9]Sheet2!A:A,[9]Sheet2!D:D,0,FALSE) -> Non Chq Bk | C105: REAER | D105: 330 | E105: 2477 | F105: 3302477 | G105: HARBORNE JI | H105: -301976.363 | I105: 289175.3 | J105: -12801.06301 | L105: -23387.3 | M105: -9866.46 | N105: -33253.76 | O105: =-_xlfn.XLOOKUP(A105,[10]Capital!B:B,[10]Capital!AG:AG,0,FALSE) -> -24202.48 | P105: =_xlfn.XLOOKUP(A105,[10]Capital!B:B,[10]Capital!AH:AH,0,FALSE) -> 0 | Q105: -24202.48
A106: AX09P | B106: =_xlfn.XLOOKUP(A106,[9]Sheet2!A:A,[9]Sheet2!D:D,0,FALSE) -> Non Chq Bk | C106: REAHP | D106: 330 | E106: 3436 | F106: 3303436 | G106: HARPER BELL PRIMARY JI NC | H106: 813095.1297 | I106: -230959.38 | J106: 582135.7497 | L106: 0 | M106: 0 | N106: 0 | O106: =-_xlfn.XLOOKUP(A106,[10]Capital!B:B,[10]Capital!AG:AG,0,FALSE) -> 0 | P106: =_xlfn.XLOOKUP(A106,[10]Capital!B:B,[10]Capital!AH:AH,0,FALSE) -> 0 | Q106: 0
A107: AX02U | B107: =_xlfn.XLOOKUP(A107,[9]Sheet2!A:A,[9]Sheet2!D:D,0,FALSE) -> Non Chq Bk | C107: REAFH | D107: 330 | E107: 3411 | F107: 3303411 | G107: HOLLY HILL I NC | H107: -177407.2659 | I107: 3319.48 | J107: -174087.7859 | L107: 0 | M107: 0 | N107: 0 | O107: =-_xlfn.XLOOKUP(A107,[10]Capital!B:B,[10]Capital!AG:AG,0,FALSE) -> 0 | P107: =_xlfn.XLOOKUP(A107,[10]Capital!B:B,[10]Capital!AH:AH,0,FALSE) -> 0 | Q107: 0
A108: AX02V | B108: =_xlfn.XLOOKUP(A108,[9]Sheet2!A:A,[9]Sheet2!D:D,0,FALSE) -> Non Chq Bk | C108: REAFK | D108: 330 | E108: 2474 | F108: 3302474 | G108: HOLLYFIELD JI | H108: -47784.88419 | I108: 24104.4 | J108: -23680.48419 | L108: -14453.17 | M108: -7905.97 | N108: -22359.14 | O108: =-_xlfn.XLOOKUP(A108,[10]Capital!B:B,[10]Capital!AG:AG,0,FALSE) -> -18385.08 | P108: =_xlfn.XLOOKUP(A108,[10]Capital!B:B,[10]Capital!AH:AH,0,FALSE) -> 0 | Q108: -18385.08
A109: AX02Y | B109: =_xlfn.XLOOKUP(A109,[9]Sheet2!A:A,[9]Sheet2!D:D,0,FALSE) -> Non Chq Bk | C109: REAFP | D109: 330 | E109: 3317 | F109: 3303317 | G109: HOLY FAMILY RC JI NC | H109: -193827.1689 | I109: 54120.08 | J109: -139707.0889 | L109: 0 | M109: 0 | N109: 0 | O109: =-_xlfn.XLOOKUP(A109,[10]Capital!B:B,[10]Capital!AG:AG,0,FALSE) -> 0 | P109: =_xlfn.XLOOKUP(A109,[10]Capital!B:B,[10]Capital!AH:AH,0,FALSE) -> 0 | Q109: 0
A110: AX035 | B110: =_xlfn.XLOOKUP(A110,[9]Sheet2!A:A,[9]Sheet2!D:D,0,FALSE) -> Non Chq Bk | C110: REAFW | D110: 330 | E110: 3352 | F110: 3303352 | G110: KING DAVID JI NC | H110: -20489.61138 | I110: 14362.29 | J110: -6127.321378 | L110: 0 | M110: 0 | N110: 0 | O110: =-_xlfn.XLOOKUP(A110,[10]Capital!B:B,[10]Capital!AG:AG,0,FALSE) -> 0 | P110: =_xlfn.XLOOKUP(A110,[10]Capital!B:B,[10]Capital!AH:AH,0,FALSE) -> 0 | Q110: 0
A111: AX037 | B111: =_xlfn.XLOOKUP(A111,[9]Sheet2!A:A,[9]Sheet2!D:D,0,FALSE) -> Non Chq Bk | C111: REAFY | D111: 330 | E111: 2005 | F111: 3302005 | G111: KINGS HEATH JI NC | H111: 172089.7477 | I111: 41789.45 | J111: 213879.1977 | L111: -15655.84 | M111: -5345.62 | N111: -21001.46 | O111: =-_xlfn.XLOOKUP(A111,[10]Capital!B:B,[10]Capital!AG:AG,0,FALSE) -> -23408.1 | P111: =_xlfn.XLOOKUP(A111,[10]Capital!B:B,[10]Capital!AH:AH,0,FALSE) -> 0 | Q111: -23408.1
A112: AX03B | B112: =_xlfn.XLOOKUP(A112,[9]Sheet2!A:A,[9]Sheet2!D:D,0,FALSE) -> Non Chq Bk | C112: REAGB | D112: 330 | E112: 2115 | F112: 3302115 | G112: KINGSLAND JI NC | H112: -459640.2757 | I112: 46204.67 | J112: -413435.6057 | L112: -15526.28 | M112: -7782.25 | N112: -23308.53 | O112: =-_xlfn.XLOOKUP(A112,[10]Capital!B:B,[10]Capital!AG:AG,0,FALSE) -> -16744.17 | P112: =_xlfn.XLOOKUP(A112,[10]Capital!B:B,[10]Capital!AH:AH,0,FALSE) -> 0 | Q112: -16744.17
A113: AX03C | B113: =_xlfn.XLOOKUP(A113,[9]Sheet2!A:A,[9]Sheet2!D:D,0,FALSE) -> Non Chq Bk | C113: REAGC | D113: 330 | E113: 2441 | F113: 3302441 | G113: KINGSTHORNE JI NC | H113: -608298.3945 | I113: 117564.39 | J113: -490734.0045 | L113: -5373.35 | M113: 516.25 | N113: -4857.1 | O113: =-_xlfn.XLOOKUP(A113,[10]Capital!B:B,[10]Capital!AG:AG,0,FALSE) -> -17378.07 | P113: =_xlfn.XLOOKUP(A113,[10]Capital!B:B,[10]Capital!AH:AH,0,FALSE) -> 0 | Q113: -17378.07
A114: AX03D | B114: =_xlfn.XLOOKUP(A114,[9]Sheet2!A:A,[9]Sheet2!D:D,0,FALSE) -> Non Chq Bk | C114: REAGD | D114: 330 | E114: 2321 | F114: 3302321 | G114: KITWELL JI NC | H114: -185128.8824 | I114: -86563.12 | J114: -271692.0024 | L114: -8231.75 | M114: 8081.4 | N114: -150.35 | O114: =-_xlfn.XLOOKUP(A114,[10]Capital!B:B,[10]Capital!AG:AG,0,FALSE) -> -14132.36 | P114: =_xlfn.XLOOKUP(A114,[10]Capital!B:B,[10]Capital!AH:AH,0,FALSE) -> 0 | Q114: -14132.36
A115: AX03R | B115: =_xlfn.XLOOKUP(A115,[9]Sheet2!A:A,[9]Sheet2!D:D,0,FALSE) -> Non Chq Bk | C115: REAGV | D115: 330 | E115: 2004 | F115: 3302004 | G115: MAPLEDENE JI NC | H115: -129181.2444 | I115: 96832.02 | J115: -32349.22438 | L115: -54946.9 | M115: -415 | N115: -55361.9 | O115: =-_xlfn.XLOOKUP(A115,[10]Capital!B:B,[10]Capital!AG:AG,0,FALSE) -> -16563.63 | P115: =_xlfn.XLOOKUP(A115,[10]Capital!B:B,[10]Capital!AH:AH,0,FALSE) -> 0 | Q115: -16563.63
A116: AX03Z | B116: =_xlfn.XLOOKUP(A116,[9]Sheet2!A:A,[9]Sheet2!D:D,0,FALSE) -> Non Chq Bk | C116: REAHA | D116: 330 | E116: 2246 | F116: 3302246 | G116: MEADOWS JI | H116: -304201.9512 | I116: -103572.02 | J116: -407773.9712 | L116: -15205.13 | M116: -11121.25 | N116: -26326.38 | O116: =-_xlfn.XLOOKUP(A116,[10]Capital!B:B,[10]Capital!AG:AG,0,FALSE) -> -22697.98 | P116: =_xlfn.XLOOKUP(A116,[10]Capital!B:B,[10]Capital!AH:AH,0,FALSE) -> 0 | Q116: -22697.98
A117: AX041 | B117: =_xlfn.XLOOKUP(A117,[9]Sheet2!A:A,[9]Sheet2!D:D,0,FALSE) -> Non Chq Bk | C117: REAHG | D117: 330 | E117: 2416 | F117: 3302416 | G117: MOOR HALL JI | H117: -28012.74134 | I117: 52464.18 | J117: 24451.43866 | L117: -8538.52 | M117: -7453.75 | N117: -15992.27 | O117: =-_xlfn.XLOOKUP(A117,[10]Capital!B:B,[10]Capital!AG:AG,0,FALSE) -> -16158.42 | P117: =_xlfn.XLOOKUP(A117,[10]Capital!B:B,[10]Capital!AH:AH,0,FALSE) -> 0 | Q117: -16158.42
A118: AX042 | B118: =_xlfn.XLOOKUP(A118,[9]Sheet2!A:A,[9]Sheet2!D:D,0,FALSE) -> Non Chq Bk | C118: REAHH | D118: 330 | E118: 3003 | F118: 3303003 | G118: MOSELEY CE JI | H118: -103047.0798 | I118: -10947.56 | J118: -113994.6398 | L118: -28412.5 | M118: 0 | N118: -28412.5 | O118: =-_xlfn.XLOOKUP(A118,[10]Capital!B:B,[10]Capital!AG:AG,0,FALSE) -> 0 | P118: =_xlfn.XLOOKUP(A118,[10]Capital!B:B,[10]Capital!AH:AH,0,FALSE) -> 0 | Q118: 0
A119: AX043 | B119: =_xlfn.XLOOKUP(A119,[9]Sheet2!A:A,[9]Sheet2!D:D,0,FALSE) -> Non Chq Bk | C119: REAHL | D119: 330 | E119: 2142 | F119: 3302142 | G119: NELSON JI NC | H119: -1196268.229 | I119: 134216.24 | J119: -1062051.989 | L119: -63875.72 | M119: -2508.47 | N119: -66384.19 | O119: =-_xlfn.XLOOKUP(A119,[10]Capital!B:B,[10]Capital!AG:AG,0,FALSE) -> -18272.74 | P119: =_xlfn.XLOOKUP(A119,[10]Capital!B:B,[10]Capital!AH:AH,0,FALSE) -> 0 | Q119: -18272.74
A120: AX044 | B120: =_xlfn.XLOOKUP(A120,[9]Sheet2!A:A,[9]Sheet2!D:D,0,FALSE) -> Non Chq Bk | C120: REAHM | D120: 330 | E120: 2457 | F120: 3302457 | G120: NELSON MANDELA JI NC | H120: -817621.9726 | I120: -51783.03 | J120: -869405.0026 | L120: -9143.5 | M120: -8992.75 | N120: -18136.25 | O120: =-_xlfn.XLOOKUP(A120,[10]Capital!B:B,[10]Capital!AG:AG,0,FALSE) -> -18902.63 | P120: =_xlfn.XLOOKUP(A120,[10]Capital!B:B,[10]Capital!AH:AH,0,FALSE) -> 0 | Q120: -18902.63
A121: AX045 | B121: =_xlfn.XLOOKUP(A121,[9]Sheet2!A:A,[9]Sheet2!D:D,0,FALSE) -> Non Chq Bk | C121: REAHN | D121: 330 | E121: 2469 | F121: 3302469 | G121: NEW HALL JI NC | H121: -441666.6342 | I121: -118194.53 | J121: -559861.1642 | L121: -8966.32 | M121: -4442.09 | N121: -13408.41 | O121: =-_xlfn.XLOOKUP(A121,[10]Capital!B:B,[10]Capital!AG:AG,0,FALSE) -> -16399.14 | P121: =_xlfn.XLOOKUP(A121,[10]Capital!B:B,[10]Capital!AH:AH,0,FALSE) -> 0 | Q121: -16399.14
A122: AX046 | B122: =_xlfn.XLOOKUP(A122,[9]Sheet2!A:A,[9]Sheet2!D:D,0,FALSE) -> Non Chq Bk | C122: REAHQ | D122: 330 | E122: 3431 | F122: 3303431 | G122: NEW OSCOTT JI NC | H122: -69743.62491 | I122: 70025.27 | J122: 281.6450859 | L122: -17207.45 | M122: -11773.06 | N122: -28980.51 | O122: =-_xlfn.XLOOKUP(A122,[10]Capital!B:B,[10]Capital!AG:AG,0,FALSE) -> -23347.92 | P122: =_xlfn.XLOOKUP(A122,[10]Capital!B:B,[10]Capital!AH:AH,0,FALSE) -> 0 | Q122: -23347.92
A123: AX04H | B123: =_xlfn.XLOOKUP(A123,[9]Sheet2!A:A,[9]Sheet2!D:D,0,FALSE) -> Non Chq Bk | C123: REAJF | D123: 330 | E123: 2149 | F123: 3302149 | G123: PAGET JI NC | H123: -356232.3205 | I123: -77498.53 | J123: -433730.8505 | L123: -28987.72 | M123: -20875.05 | N123: -49862.77 | O123: =-_xlfn.XLOOKUP(A123,[10]Capital!B:B,[10]Capital!AG:AG,0,FALSE) -> -17691 | P123: =_xlfn.XLOOKUP(A123,[10]Capital!B:B,[10]Capital!AH:AH,0,FALSE) -> 0 | Q123: -17691
A124: AX04J | B124: =_xlfn.XLOOKUP(A124,[9]Sheet2!A:A,[9]Sheet2!D:D,0,FALSE) -> Non Chq Bk | C124: REAJG | D124: 330 | E124: 2150 | F124: 3302150 | G124: PARK HILL JI NC | H124: 185819.9857 | I124: 91370.17 | J124: 277190.1557 | L124: -71391.79 | M124: 20656.11 | N124: -50735.68 | O124: =-_xlfn.XLOOKUP(A124,[10]Capital!B:B,[10]Capital!AG:AG,0,FALSE) -> -17829.42 | P124: =_xlfn.XLOOKUP(A124,[10]Capital!B:B,[10]Capital!AH:AH,0,FALSE) -> 0 | Q124: -17829.42
A125: AX04K | B125: =_xlfn.XLOOKUP(A125,[9]Sheet2!A:A,[9]Sheet2!D:D,0,FALSE) -> Non Chq Bk | C125: REAJK | D125: 330 | E125: 2425 | F125: 3302425 | G125: PENNS JI | H125: -34964.31187 | I125: 231810.25 | J125: 196845.9381 | L125: -35224.75 | M125: -6373.75 | N125: -41598.5 | O125: =-_xlfn.XLOOKUP(A125,[10]Capital!B:B,[10]Capital!AG:AG,0,FALSE) -> -14232.66 | P125: =_xlfn.XLOOKUP(A125,[10]Capital!B:B,[10]Capital!AH:AH,0,FALSE) -> 0 | Q125: -14232.66
A126: AX04L | B126: =_xlfn.XLOOKUP(A126,[9]Sheet2!A:A,[9]Sheet2!D:D,0,FALSE) -> Non Chq Bk | C126: REAJM | D126: 330 | E126: 2017 | F126: 3302017 | G126: BEECHES I (Formerly PERRY BEECHES I) | H126: -8990.270341 | I126: -4080.73 | J126: -13071.00034 | L126: -11505.94 | M126: -7037.5 | N126: -18543.44 | O126: =-_xlfn.XLOOKUP(A126,[10]Capital!B:B,[10]Capital!AG:AG,0,FALSE) -> -15416.2 | P126: =_xlfn.XLOOKUP(A126,[10]Capital!B:B,[10]Capital!AH:AH,0,FALSE) -> 0 | Q126: -15416.2
A127: AX04M | B127: =_xlfn.XLOOKUP(A127,[9]Sheet2!A:A,[9]Sheet2!D:D,0,FALSE) -> Non Chq Bk | C127: REAJN | D127: 330 | E127: 2016 | F127: 3302016 | G127: PERRY BEECHES J | H127: -347050.0452 | I127: 158492.06 | J127: -188557.9852 | L127: -13058.55 | M127: -16255.25 | N127: -29313.8 | O127: =-_xlfn.XLOOKUP(A127,[10]Capital!B:B,[10]Capital!AG:AG,0,FALSE) -> -17201.54 | P127: =_xlfn.XLOOKUP(A127,[10]Capital!B:B,[10]Capital!AH:AH,0,FALSE) -> 0 | Q127: -17201.54
A128: AX04V | B128: =_xlfn.XLOOKUP(A128,[9]Sheet2!A:A,[9]Sheet2!D:D,0,FALSE) -> Non Chq Bk | C128: REAJX | D128: 330 | E128: 2157 | F128: 3302157 | G128: RADDLEBARN JI NC | H128: 28539.49306 | I128: 115640.97 | J128: 144180.4631 | L128: -6263.41 | M128: -8347 | N128: -14610.41 | O128: =-_xlfn.XLOOKUP(A128,[10]Capital!B:B,[10]Capital!AG:AG,0,FALSE) -> -17751.18 | P128: =_xlfn.XLOOKUP(A128,[10]Capital!B:B,[10]Capital!AH:AH,0,FALSE) -> 0 | Q128: -17751.18
A129: AX04W | B129: =_xlfn.XLOOKUP(A129,[9]Sheet2!A:A,[9]Sheet2!D:D,0,FALSE) -> Non Chq Bk | C129: REAJZ | D129: 330 | E129: 2159 | F129: 3302159 | G129: REDHILL JI NC | H129: 103873.0906 | I129: -86234.68 | J129: 17638.41058 | L129: -4943.33 | M129: 7852.37 | N129: 2909.04 | O129: =-_xlfn.XLOOKUP(A129,[10]Capital!B:B,[10]Capital!AG:AG,0,FALSE) -> -14032.06 | P129: =_xlfn.XLOOKUP(A129,[10]Capital!B:B,[10]Capital!AH:AH,0,FALSE) -> 0 | Q129: -14032.06
A130: AX04X | B130: =_xlfn.XLOOKUP(A130,[9]Sheet2!A:A,[9]Sheet2!D:D,0,FALSE) -> Non Chq Bk | C130: REAKA | D130: 330 | E130: 2161 | F130: 3302161 | G130: REDNAL HILL I NC | H130: -277308.1469 | I130: 11739.5 | J130: -265568.6469 | L130: -18007.84 | M130: 8426.59 | N130: -9581.25 | O130: =-_xlfn.XLOOKUP(A130,[10]Capital!B:B,[10]Capital!AG:AG,0,FALSE) -> -15873.57 | P130: =_xlfn.XLOOKUP(A130,[10]Capital!B:B,[10]Capital!AH:AH,0,FALSE) -> 0 | Q130: -15873.57
A131: AX054 | B131: =_xlfn.XLOOKUP(A131,[9]Sheet2!A:A,[9]Sheet2!D:D,0,FALSE) -> Non Chq Bk | C131: REAKK | D131: 330 | E131: 2169 | F131: 3302169 | G131: SEVERNE JI NC | H131: -472388.7585 | I131: 138858.03 | J131: -333530.7285 | L131: -17465.26 | M131: -7697.75 | N131: -25163.01 | O131: =-_xlfn.XLOOKUP(A131,[10]Capital!B:B,[10]Capital!AG:AG,0,FALSE) -> -18019.99 | P131: =_xlfn.XLOOKUP(A131,[10]Capital!B:B,[10]Capital!AH:AH,0,FALSE) -> 0 | Q131: -18019.99
A132: AX05C | B132: =_xlfn.XLOOKUP(A132,[9]Sheet2!A:A,[9]Sheet2!D:D,0,FALSE) -> Non Chq Bk | C132: REAKX | D132: 330 | E132: 3381 | F132: 3303381 | G132: ST ALBANS RC JI | H132: 68784.92424 | I132: -11253.8 | J132: 57531.12424 | L132: 0 | M132: 0 | N132: 0 | O132: =-_xlfn.XLOOKUP(A132,[10]Capital!B:B,[10]Capital!AG:AG,0,FALSE) -> 0 | P132: =_xlfn.XLOOKUP(A132,[10]Capital!B:B,[10]Capital!AH:AH,0,FALSE) -> 0 | Q132: 0
A133: AX05F | B133: =_xlfn.XLOOKUP(A133,[9]Sheet2!A:A,[9]Sheet2!D:D,0,FALSE) -> Non Chq Bk | C133: REALB | D133: 330 | E133: 3329 | F133: 3303329 | G133: ST AUGUSTINE'S RC JI NC | H133: -102457.6865 | I133: 17069.78 | J133: -85387.90646 | L133: 0 | M133: 0 | N133: 0 | O133: =-_xlfn.XLOOKUP(A133,[10]Capital!B:B,[10]Capital!AG:AG,0,FALSE) -> 0 | P133: =_xlfn.XLOOKUP(A133,[10]Capital!B:B,[10]Capital!AH:AH,0,FALSE) -> 0 | Q133: =O133+P133 -> 0
A134: AX05H | B134: =_xlfn.XLOOKUP(A134,[9]Sheet2!A:A,[9]Sheet2!D:D,0,FALSE) -> Non Chq Bk | C134: REALD | D134: 330 | E134: 2183 | F134: 3302183 | G134: ST BENEDICT'S I NC | H134: 316210.9802 | I134: -292771.61 | J134: 23439.37017 | L134: -10544.58 | M134: -8444.88 | N134: -18989.46 | O134: =-_xlfn.XLOOKUP(A134,[10]Capital!B:B,[10]Capital!AG:AG,0,FALSE) -> -17925.71 | P134: =_xlfn.XLOOKUP(A134,[10]Capital!B:B,[10]Capital!AH:AH,0,FALSE) -> 0 | Q134: -17925.71
A135: AX05K | B135: =_xlfn.XLOOKUP(A135,[9]Sheet2!A:A,[9]Sheet2!D:D,0,FALSE) -> Non Chq Bk | C135: REALF | D135: 330 | E135: 3375 | F135: 3303375 | G135: ST BERNARD'S RC JI | H135: -251829.1336 | I135: 28842.8 | J135: -222986.3336 | L135: 0 | M135: 0 | N135: 0 | O135: =-_xlfn.XLOOKUP(A135,[10]Capital!B:B,[10]Capital!AG:AG,0,FALSE) -> 0 | P135: =_xlfn.XLOOKUP(A135,[10]Capital!B:B,[10]Capital!AH:AH,0,FALSE) -> 0 | Q135: 0
A136: AX05L | B136: =_xlfn.XLOOKUP(A136,[9]Sheet2!A:A,[9]Sheet2!D:D,0,FALSE) -> Non Chq Bk | C136: REALH | D136: 330 | E136: 3331 | F136: 3303331 | G136: ST CATHERINE'S RC JI NC | H136: -69295.94346 | I136: 21742.69 | J136: -47553.25346 | L136: 0 | M136: 0 | N136: 0 | O136: =-_xlfn.XLOOKUP(A136,[10]Capital!B:B,[10]Capital!AG:AG,0,FALSE) -> 0 | P136: =_xlfn.XLOOKUP(A136,[10]Capital!B:B,[10]Capital!AH:AH,0,FALSE) -> 0 | Q136: 0
A137: AX05N | B137: =_xlfn.XLOOKUP(A137,[9]Sheet2!A:A,[9]Sheet2!D:D,0,FALSE) -> Non Chq Bk | C137: REALK | D137: 330 | E137: 3406 | F137: 3303406 | G137: ST CLARE'S RC JI NC | H137: -338534.9268 | I137: 78420.19 | J137: -260114.7368 | L137: 0 | M137: 0 | N137: 0 | O137: =-_xlfn.XLOOKUP(A137,[10]Capital!B:B,[10]Capital!AG:AG,0,FALSE) -> 0 | P137: =_xlfn.XLOOKUP(A137,[10]Capital!B:B,[10]Capital!AH:AH,0,FALSE) -> 0 | Q137: 0
A138: AX05P | B138: =_xlfn.XLOOKUP(A138,[9]Sheet2!A:A,[9]Sheet2!D:D,0,FALSE) -> Non Chq Bk | C138: REALN | D138: 330 | E138: 3386 | F138: 3303386 | G138: ST CUTHBERTS RC JI NC | H138: -162113.5035 | I138: -2975.15 | J138: -165088.6535 | L138: 0 | M138: 0 | N138: 0 | O138: =-_xlfn.XLOOKUP(A138,[10]Capital!B:B,[10]Capital!AG:AG,0,FALSE) -> 0 | P138: =_xlfn.XLOOKUP(A138,[10]Capital!B:B,[10]Capital!AH:AH,0,FALSE) -> 0 | Q138: 0
A139: AX05T | B139: =_xlfn.XLOOKUP(A139,[9]Sheet2!A:A,[9]Sheet2!D:D,0,FALSE) -> Non Chq Bk | C139: REALQ | D139: 330 | E139: 3347 | F139: 3303347 | G139: ST EDMUND'S RC JI NC | H139: -95743.37885 | I139: 93263.05 | J139: -2480.328846 | L139: 0 | M139: 0 | N139: 0 | O139: =-_xlfn.XLOOKUP(A139,[10]Capital!B:B,[10]Capital!AG:AG,0,FALSE) -> 0 | P139: =_xlfn.XLOOKUP(A139,[10]Capital!B:B,[10]Capital!AH:AH,0,FALSE) -> 0 | Q139: 0
A140: AX05V | B140: =_xlfn.XLOOKUP(A140,[9]Sheet2!A:A,[9]Sheet2!D:D,0,FALSE) -> Non Chq Bk | C140: REALV | D140: 330 | E140: 3342 | F140: 3303342 | G140: ST FRANCIS RC JI | H140: -342085.8205 | I140: -98652.32 | J140: -440738.1405 | L140: 0 | M140: 0 | N140: 0 | O140: =-_xlfn.XLOOKUP(A140,[10]Capital!B:B,[10]Capital!AG:AG,0,FALSE) -> 0 | P140: =_xlfn.XLOOKUP(A140,[10]Capital!B:B,[10]Capital!AH:AH,0,FALSE) -> 0 | Q140: 0
A141: AX05Z | B141: =_xlfn.XLOOKUP(A141,[9]Sheet2!A:A,[9]Sheet2!D:D,0,FALSE) -> Non Chq Bk | C141: REALZ | D141: 330 | E141: 3010 | F141: 3303010 | G141: ST JAMES CE JI | H141: -301717.8466 | I141: -133511.43 | J141: -435229.2766 | L141: -15225.98 | M141: 4223.56 | N141: -11002.42 | O141: =-_xlfn.XLOOKUP(A141,[10]Capital!B:B,[10]Capital!AG:AG,0,FALSE) -> -18344.96 | P141: =_xlfn.XLOOKUP(A141,[10]Capital!B:B,[10]Capital!AH:AH,0,FALSE) -> 0 | Q141: -18344.96
A142: AX068 | B142: =_xlfn.XLOOKUP(A142,[9]Sheet2!A:A,[9]Sheet2!D:D,0,FALSE) -> Non Chq Bk | C142: REAML | D142: 330 | E142: 3307 | F142: 3303307 | G142: ST LAURENCE CE J | H142: -235270.3773 | I142: 34181.86 | J142: -201088.5173 | L142: 0 | M142: 0 | N142: 0 | O142: =-_xlfn.XLOOKUP(A142,[10]Capital!B:B,[10]Capital!AG:AG,0,FALSE) -> 0 | P142: =_xlfn.XLOOKUP(A142,[10]Capital!B:B,[10]Capital!AH:AH,0,FALSE) -> 0 | Q142: 0
A143: AX06B | B143: =_xlfn.XLOOKUP(A143,[9]Sheet2!A:A,[9]Sheet2!D:D,0,FALSE) -> Non Chq Bk | C143: REAMQ | D143: 330 | E143: 3382 | F143: 3303382 | G143: ST MARTIN de PORRES RC JI | H143: -139450.6018 | I143: 48085.19 | J143: -91365.41181 | L143: 0 | M143: 0 | N143: 0 | O143: =-_xlfn.XLOOKUP(A143,[10]Capital!B:B,[10]Capital!AG:AG,0,FALSE) -> 0 | P143: =_xlfn.XLOOKUP(A143,[10]Capital!B:B,[10]Capital!AH:AH,0,FALSE) -> 0 | Q143: 0
A144: AX06D | B144: =_xlfn.XLOOKUP(A144,[9]Sheet2!A:A,[9]Sheet2!D:D,0,FALSE) -> Non Chq Bk | C144: REAMV | D144: 330 | E144: 3025 | F144: 3303025 | G144: ST MARY'S CE (B29) JI | H144: -107751.006 | I144: 13878.55 | J144: -93872.45602 | L144: -1393.04 | M144: 0 | N144: -1393.04 | O144: =-_xlfn.XLOOKUP(A144,[10]Capital!B:B,[10]Capital!AG:AG,0,FALSE) -> 0 | P144: =_xlfn.XLOOKUP(A144,[10]Capital!B:B,[10]Capital!AH:AH,0,FALSE) -> 0 | Q144: 0
A145: AX06H | B145: =_xlfn.XLOOKUP(A145,[9]Sheet2!A:A,[9]Sheet2!D:D,0,FALSE) -> Non Chq Bk | C145: REANB | D145: 330 | E145: 3346 | F145: 3303346 | G145: ST PATRICK'S RC JI | H145: 188107.6644 | I145: 75851.56 | J145: 263959.2244 | L145: 0 | M145: 0 | N145: 0 | O145: =-_xlfn.XLOOKUP(A145,[10]Capital!B:B,[10]Capital!AG:AG,0,FALSE) -> 0 | P145: =_xlfn.XLOOKUP(A145,[10]Capital!B:B,[10]Capital!AH:AH,0,FALSE) -> 0 | Q145: 0
A146: AX06P | B146: =_xlfn.XLOOKUP(A146,[9]Sheet2!A:A,[9]Sheet2!D:D,0,FALSE) -> Non Chq Bk | C146: REANJ | D146: 330 | E146: 3365 | F146: 3303365 | G146: ST TERESA'S RC JI | H146: -247500.4396 | I146: -75026.09 | J146: -322526.5296 | L146: 0 | M146: 0 | N146: 0 | O146: =-_xlfn.XLOOKUP(A146,[10]Capital!B:B,[10]Capital!AG:AG,0,FALSE) -> 0 | P146: =_xlfn.XLOOKUP(A146,[10]Capital!B:B,[10]Capital!AH:AH,0,FALSE) -> 0 | Q146: 0
A147: AX06U | B147: =_xlfn.XLOOKUP(A147,[9]Sheet2!A:A,[9]Sheet2!D:D,0,FALSE) -> Non Chq Bk | C147: REANM | D147: 330 | E147: 3310 | F147: 3303310 | G147: ST VINCENT'S RC JI NC | H147: -164094.2551 | I147: 55092.08 | J147: -109002.1751 | L147: 0 | M147: 0 | N147: 0 | O147: =-_xlfn.XLOOKUP(A147,[10]Capital!B:B,[10]Capital!AG:AG,0,FALSE) -> 0 | P147: =_xlfn.XLOOKUP(A147,[10]Capital!B:B,[10]Capital!AH:AH,0,FALSE) -> 0 | Q147: 0
A148: AX06Y | B148: =_xlfn.XLOOKUP(A148,[9]Sheet2!A:A,[9]Sheet2!D:D,0,FALSE) -> Non Chq Bk | C148: REANR | D148: 330 | E148: 2184 | F148: 3302184 | G148: STECHFORD JI NC | H148: -668595.9225 | I148: -94484.71 | J148: -763080.6325 | L148: -6375.19 | M148: -2143.25 | N148: -8518.44 | O148: =-_xlfn.XLOOKUP(A148,[10]Capital!B:B,[10]Capital!AG:AG,0,FALSE) -> -18413.16 | P148: =_xlfn.XLOOKUP(A148,[10]Capital!B:B,[10]Capital!AH:AH,0,FALSE) -> 0 | Q148: -18413.16
A149: AX071 | B149: =_xlfn.XLOOKUP(A149,[9]Sheet2!A:A,[9]Sheet2!D:D,0,FALSE) -> Non Chq Bk | C149: REANV | D149: 330 | E149: 2067 | F149: 3302067 | G149: SUMMERFIELD JI NC | H149: -406970.3865 | I149: -42457.35 | J149: -449427.7365 | L149: -17262.74 | M149: 3411.41 | N149: -13851.33 | O149: =-_xlfn.XLOOKUP(A149,[10]Capital!B:B,[10]Capital!AG:AG,0,FALSE) -> -18056.1 | P149: =_xlfn.XLOOKUP(A149,[10]Capital!B:B,[10]Capital!AH:AH,0,FALSE) -> 0 | Q149: -18056.1
A150: AX075 | B150: =_xlfn.XLOOKUP(A150,[9]Sheet2!A:A,[9]Sheet2!D:D,0,FALSE) -> Non Chq Bk | C150: REANY | D150: 330 | E150: 2192 | F150: 3302192 | G150: THORNTON JI | H150: -486671.6391 | I150: 124560.78 | J150: -362110.8591 | L150: -4769.01 | M150: -6419.55 | N150: -11188.56 | O150: =-_xlfn.XLOOKUP(A150,[10]Capital!B:B,[10]Capital!AG:AG,0,FALSE) -> -21434.2 | P150: =_xlfn.XLOOKUP(A150,[10]Capital!B:B,[10]Capital!AH:AH,0,FALSE) -> 0 | Q150: -21434.2
A151: AX07B | B151: =_xlfn.XLOOKUP(A151,[9]Sheet2!A:A,[9]Sheet2!D:D,0,FALSE) -> Non Chq Bk | C151: REAPK | D151: 330 | E151: 2108 | F151: 3302108 | G151: WARD END JI NC | H151: -1079540.339 | I151: 101953.18 | J151: -977587.1593 | L151: -103591.43 | M151: -14107 | N151: -117698.43 | O151: =-_xlfn.XLOOKUP(A151,[10]Capital!B:B,[10]Capital!AG:AG,0,FALSE) -> -28021.9 | P151: =_xlfn.XLOOKUP(A151,[10]Capital!B:B,[10]Capital!AH:AH,0,FALSE) -> 0 | Q151: -28021.9
A152: AX07L | B152: =_xlfn.XLOOKUP(A152,[9]Sheet2!A:A,[9]Sheet2!D:D,0,FALSE) -> Non Chq Bk | C152: REAPV | D152: 330 | E152: 2019 | F152: 3302019 | G152: WEST HEATH JI | H152: 38173.80303 | I152: -99030.74 | J152: -60856.93697 | L152: -6190.01 | M152: -8522.5 | N152: -14712.51 | O152: =-_xlfn.XLOOKUP(A152,[10]Capital!B:B,[10]Capital!AG:AG,0,FALSE) -> -18064.12 | P152: =_xlfn.XLOOKUP(A152,[10]Capital!B:B,[10]Capital!AH:AH,0,FALSE) -> 0 | Q152: -18064.12
A153: AX07W | B153: =_xlfn.XLOOKUP(A153,[9]Sheet2!A:A,[9]Sheet2!D:D,0,FALSE) -> Non Chq Bk | C153: REARF | D153: 330 | E153: 2314 | F153: 3302314 | G153: WOODTHORPE JI | H153: -92300.46769 | I153: -25188.37 | J153: -117488.8377 | L153: -13252.13 | M153: -6317.5 | N153: -19569.63 | O153: =-_xlfn.XLOOKUP(A153,[10]Capital!B:B,[10]Capital!AG:AG,0,FALSE) -> -14132.36 | P153: =_xlfn.XLOOKUP(A153,[10]Capital!B:B,[10]Capital!AH:AH,0,FALSE) -> 0 | Q153: -14132.36
A154: AX081 | B154: =_xlfn.XLOOKUP(A154,[9]Sheet2!A:A,[9]Sheet2!D:D,0,FALSE) -> Non Chq Bk | C154: REARR | D154: 330 | E154: 2227 | F154: 3302227 | G154: YARDLEY WOOD JI NC | H154: -383723.6577 | I154: 46136.2 | J154: -337587.4577 | L154: -2234.45 | M154: 7599.25 | N154: 5364.8 | O154: =-_xlfn.XLOOKUP(A154,[10]Capital!B:B,[10]Capital!AG:AG,0,FALSE) -> -18292.8 | P154: =_xlfn.XLOOKUP(A154,[10]Capital!B:B,[10]Capital!AH:AH,0,FALSE) -> 0 | Q154: -18292.8
A155: AX083 | B155: =_xlfn.XLOOKUP(A155,[9]Sheet2!A:A,[9]Sheet2!D:D,0,FALSE) -> Non Chq Bk | C155: REARY | D155: 330 | E155: 2231 | F155: 3302231 | G155: YORKMEAD JI NC | H155: -289803.4651 | I155: 76241.09 | J155: -213562.3751 | L155: -805.55 | M155: -8920.75 | N155: -9726.3 | O155: =-_xlfn.XLOOKUP(A155,[10]Capital!B:B,[10]Capital!AG:AG,0,FALSE) -> -18774.24 | P155: =_xlfn.XLOOKUP(A155,[10]Capital!B:B,[10]Capital!AH:AH,0,FALSE) -> 0 | Q155: -18774.24
A156: AX036 | B156: =_xlfn.XLOOKUP(A156,[9]Sheet2!A:A,[9]Sheet2!D:D,0,FALSE) -> Non Chq Bk | C156: REAVW | D156: 330 | E156: 4063 | F156: 3304063 | G156: KINGS HEATH Sec | H156: -746756.8332 | I156: 272178.16 | J156: -474578.6732 | L156: -2502.98 | M156: -15044.69 | N156: -17547.67 | O156: =-_xlfn.XLOOKUP(A156,[10]Capital!B:B,[10]Capital!AG:AG,0,FALSE) -> -29693.91 | P156: =_xlfn.XLOOKUP(A156,[10]Capital!B:B,[10]Capital!AH:AH,0,FALSE) -> 0 | Q156: -29693.91
A157: AX063 | B157: =_xlfn.XLOOKUP(A157,[9]Sheet2!A:A,[9]Sheet2!D:D,0,FALSE) -> Non Chq Bk | C157: REAWV | D157: 330 | E157: 4625 | F157: 3304625 | G157: ST JOHN WALL RC Sec | H157: -155639.1298 | I157: -99943.6 | J157: -255582.7298 | L157: 0 | M157: 0 | N157: 0 | O157: =-_xlfn.XLOOKUP(A157,[10]Capital!B:B,[10]Capital!AG:AG,0,FALSE) -> 0 | P157: =_xlfn.XLOOKUP(A157,[10]Capital!B:B,[10]Capital!AH:AH,0,FALSE) -> 0 | Q157: 0
A158: AX07N | B158: =_xlfn.XLOOKUP(A158,[9]Sheet2!A:A,[9]Sheet2!D:D,0,FALSE) -> Non Chq Bk | C158: REAXJ | D158: 330 | E158: 4193 | F158: 3304193 | G158: WHEELERS LANE Sec | H158: -42612.32706 | I158: -409612.17 | J158: -452224.4971 | L158: -478.94 | M158: -14985.62 | N158: -15464.56 | O158: =-_xlfn.XLOOKUP(A158,[10]Capital!B:B,[10]Capital!AG:AG,0,FALSE) -> -29588.59 | P158: =_xlfn.XLOOKUP(A158,[10]Capital!B:B,[10]Capital!AH:AH,0,FALSE) -> 0 | Q158: -29588.59
A159: AX00E | B159: =_xlfn.XLOOKUP(A159,[9]Sheet2!A:A,[9]Sheet2!D:D,0,FALSE) -> Non Chq Bk | C159: REAXL | D159: 330 | E159: 7016 | F159: 3307016 | G159: BASKERVILLE Spec | H159: -795930.9926 | I159: -136054.01 | J159: -931985.0026 | L159: -19241.21 | M159: -1507 | N159: -20748.21 | O159: =-_xlfn.XLOOKUP(A159,[10]Capital!B:B,[10]Capital!AG:AG,0,FALSE) -> -24443.2 | P159: =_xlfn.XLOOKUP(A159,[10]Capital!B:B,[10]Capital!AH:AH,0,FALSE) -> 0 | Q159: -24443.2
A160: AX00F | B160: =_xlfn.XLOOKUP(A160,[9]Sheet2!A:A,[9]Sheet2!D:D,0,FALSE) -> Non Chq Bk | C160: REAXM | D160: 330 | E160: 7052 | F160: 3307052 | G160: BEAUFORT Spec | H160: -379934.9606 | I160: 225337.78 | J160: -154597.1806 | L160: -23150.66 | M160: 21276.5 | N160: -1874.16 | O160: =-_xlfn.XLOOKUP(A160,[10]Capital!B:B,[10]Capital!AG:AG,0,FALSE) -> -17004.95 | P160: =_xlfn.XLOOKUP(A160,[10]Capital!B:B,[10]Capital!AH:AH,0,FALSE) -> 0 | Q160: -17004.95
A161: AX02K | B161: =_xlfn.XLOOKUP(A161,[9]Sheet2!A:A,[9]Sheet2!D:D,0,FALSE) -> Non Chq Bk | C161: REAXZ | D161: 330 | E161: 7006 | F161: 3307006 | G161: HAMILTON Spec | H161: -305588.4934 | I161: 103936.56 | J161: -201651.9334 | L161: -12588.62 | M161: -10125.62 | N161: -22714.24 | O161: =-_xlfn.XLOOKUP(A161,[10]Capital!B:B,[10]Capital!AG:AG,0,FALSE) -> -20922.67 | P161: =_xlfn.XLOOKUP(A161,[10]Capital!B:B,[10]Capital!AH:AH,0,FALSE) -> 0 | Q161: -20922.67
A162: AX03K | B162: =_xlfn.XLOOKUP(A162,[9]Sheet2!A:A,[9]Sheet2!D:D,0,FALSE) -> Non Chq Bk | C162: REAYE | D162: 330 | E162: 7062 | F162: 3307062 | G162: LINDSWORTH Spec | H162: 128968.4363 | I162: -389356.81 | J162: -260388.3737 | L162: -22341.09 | M162: -10075 | N162: -32416.09 | O162: =-_xlfn.XLOOKUP(A162,[10]Capital!B:B,[10]Capital!AG:AG,0,FALSE) -> -20832.4 | P162: =_xlfn.XLOOKUP(A162,[10]Capital!B:B,[10]Capital!AH:AH,0,FALSE) -> 0 | Q162: -20832.4
A163: AX03Y | B163: =_xlfn.XLOOKUP(A163,[9]Sheet2!A:A,[9]Sheet2!D:D,0,FALSE) -> Non Chq Bk | C163: REAYH | D163: 330 | E163: 7040 | F163: 3307040 | G163: MAYFIELD Spec | H163: 0 | I163: 0 | J163: 0 | L163: 0 | M163: 0 | N163: 0 | O163: =-_xlfn.XLOOKUP(A163,[10]Capital!B:B,[10]Capital!AG:AG,0,FALSE) -> 0 | P163: =_xlfn.XLOOKUP(A163,[10]Capital!B:B,[10]Capital!AH:AH,0,FALSE) -> 0 | Q163: 0
A164: AX04C | B164: =_xlfn.XLOOKUP(A164,[9]Sheet2!A:A,[9]Sheet2!D:D,0,FALSE) -> Non Chq Bk | C164: REAYC | D164: 330 | E164: 7053 | F164: 3307053 | G164: OSCOTT MANOR Spec | H164: -667966.6127 | I164: 359210.49 | J164: -308756.1227 | L164: -12089.88 | M164: -9492.81 | N164: -21582.69 | O164: =-_xlfn.XLOOKUP(A164,[10]Capital!B:B,[10]Capital!AG:AG,0,FALSE) -> -19794.3 | P164: =_xlfn.XLOOKUP(A164,[10]Capital!B:B,[10]Capital!AH:AH,0,FALSE) -> 0 | Q164: -19794.3
A165: AX04Q | B165: =_xlfn.XLOOKUP(A165,[9]Sheet2!A:A,[9]Sheet2!D:D,0,FALSE) -> Non Chq Bk | C165: REAYK | D165: 330 | E165: 7034 | F165: 3307034 | G165: PRIESTLEY SMITH Spec | H165: -284667.9064 | I165: 19760.64 | J165: -264907.2664 | L165: -10069.74 | M165: -2230.12 | N165: -12299.86 | O165: =-_xlfn.XLOOKUP(A165,[10]Capital!B:B,[10]Capital!AG:AG,0,FALSE) -> -17925.71 | P165: =_xlfn.XLOOKUP(A165,[10]Capital!B:B,[10]Capital!AH:AH,0,FALSE) -> 0 | Q165: -17925.71
A166: AX057 | B166: =_xlfn.XLOOKUP(A166,[9]Sheet2!A:A,[9]Sheet2!D:D,0,FALSE) -> Non Chq Bk | C166: REAYN | D166: 330 | E166: 7037 | F166: 3307037 | G166: SKILTS Spec | H166: 0 | I166: 7.275957614e-12 | J166: 7.275957614e-12 | L166: -37159.52 | M166: 0 | N166: -37159.52 | O166: =-_xlfn.XLOOKUP(A166,[10]Capital!B:B,[10]Capital!AG:AG,0,FALSE) -> 0 | P166: =_xlfn.XLOOKUP(A166,[10]Capital!B:B,[10]Capital!AH:AH,0,FALSE) -> 0 | Q166: 0
A167: AX05A | B167: =_xlfn.XLOOKUP(A167,[9]Sheet2!A:A,[9]Sheet2!D:D,0,FALSE) -> Non Chq Bk | C167: REAYP | D167: 330 | E167: 7047 | F167: 3307047 | G167: SPRINGFIELD HOUSE Spec | H167: -58526.63572 | I167: -21898.21 | J167: -80424.84572 | L167: -23276.99 | M167: 5999.62 | N167: -17277.37 | O167: =-_xlfn.XLOOKUP(A167,[10]Capital!B:B,[10]Capital!AG:AG,0,FALSE) -> -17853.49 | P167: =_xlfn.XLOOKUP(A167,[10]Capital!B:B,[10]Capital!AH:AH,0,FALSE) -> 0 | Q167: -17853.49
A168: AX087 | B168: =_xlfn.XLOOKUP(A168,[9]Sheet2!A:A,[9]Sheet2!D:D,0,FALSE) -> Chq Bk | C168: REAYX | D168: 330 | E168: 1017 | F168: 3301017 | G168: ALLENS CROFT Nurs | H168: -169669.1957 | I168: 10728.68 | J168: -158940.5157 | L168: -20062.56 | M168: 16050.6 | N168: -4011.96 | O168: =-_xlfn.XLOOKUP(A168,[10]Capital!B:B,[10]Capital!AG:AG,0,FALSE) -> -12347.02 | P168: =_xlfn.XLOOKUP(A168,[10]Capital!B:B,[10]Capital!AH:AH,0,FALSE) -> 12144 | Q168: -203.02
A169: AX056 | B169: =_xlfn.XLOOKUP(A169,[9]Sheet2!A:A,[9]Sheet2!D:D,0,FALSE) -> Chq Bk | C169: REAZV | D169: 330 | E169: 1038 | F169: 3301038 | G169: SHENLEY FIELDS Nurs | H169: -238932 | I169: 46707 | J169: -192225 | L169: -26085.06 | M169: -2966 | N169: -29051.06 | O169: =-_xlfn.XLOOKUP(A169,[10]Capital!B:B,[10]Capital!AG:AG,0,FALSE) -> -12070.19 | P169: =_xlfn.XLOOKUP(A169,[10]Capital!B:B,[10]Capital!AH:AH,0,FALSE) -> 0 | Q169: -12070.19
A170: AX085 | B170: =_xlfn.XLOOKUP(A170,[9]Sheet2!A:A,[9]Sheet2!D:D,0,FALSE) -> Chq Bk | C170: REAAD | D170: 330 | E170: 2010 | F170: 3302010 | G170: ADDERLEY JI | H170: -500372.0529 | I170: 54255.15 | J170: -446116.9029 | L170: -98159.55 | M170: -9748.75 | N170: -107908.3 | O170: =-_xlfn.XLOOKUP(A170,[10]Capital!B:B,[10]Capital!AG:AG,0,FALSE) -> -20250.66 | P170: =_xlfn.XLOOKUP(A170,[10]Capital!B:B,[10]Capital!AH:AH,0,FALSE) -> 0 | Q170: -20250.66
A171: AX08G | B171: =_xlfn.XLOOKUP(A171,[9]Sheet2!A:A,[9]Sheet2!D:D,0,FALSE) -> Chq Bk | C171: REABL | D171: 330 | E171: 2402 | F171: 3302402 | G171: BOLDMERE I NC | H171: -275184.1777 | I171: 84397.5 | J171: -190786.6777 | L171: -17571.87 | M171: 9354.04 | N171: -8217.83 | O171: =-_xlfn.XLOOKUP(A171,[10]Capital!B:B,[10]Capital!AG:AG,0,FALSE) -> -16166.44 | P171: =_xlfn.XLOOKUP(A171,[10]Capital!B:B,[10]Capital!AH:AH,0,FALSE) -> 0 | Q171: -16166.44
A172: AX00T | B172: =_xlfn.XLOOKUP(A172,[9]Sheet2!A:A,[9]Sheet2!D:D,0,FALSE) -> Chq Bk | C172: REABM | D172: 330 | E172: 2401 | F172: 3302401 | G172: BOLDMERE J | H172: -136008.6397 | I172: -34350.29 | J172: -170358.9297 | L172: -43659.88 | M172: 10051.25 | N172: -33608.63 | O172: =-_xlfn.XLOOKUP(A172,[10]Capital!B:B,[10]Capital!AG:AG,0,FALSE) -> -17362.02 | P172: =_xlfn.XLOOKUP(A172,[10]Capital!B:B,[10]Capital!AH:AH,0,FALSE) -> 0 | Q172: -17362.02
A173: AX08H | B173: =_xlfn.XLOOKUP(A173,[9]Sheet2!A:A,[9]Sheet2!D:D,0,FALSE) -> Chq Bk | C173: REABN | D173: 330 | E173: 2030 | F173: 3302030 | G173: BORDESLEY GREEN JI NC | H173: -356926.1614 | I173: 83535.04 | J173: -273391.1214 | L173: -11708.25 | M173: -7538.6 | N173: -19246.85 | O173: =-_xlfn.XLOOKUP(A173,[10]Capital!B:B,[10]Capital!AG:AG,0,FALSE) -> -23223.55 | P173: =_xlfn.XLOOKUP(A173,[10]Capital!B:B,[10]Capital!AH:AH,0,FALSE) -> 1782.4 | Q173: -21441.15
A174: AX08N | B174: =_xlfn.XLOOKUP(A174,[9]Sheet2!A:A,[9]Sheet2!D:D,0,FALSE) -> Chq Bk | C174: REABT | D174: 330 | E174: 2238 | F174: 3302238 | G174: BROADMEADOW I NC | H174: -273426.2301 | I174: 45913.37 | J174: -227512.8601 | L174: -14825.21 | M174: -2141.61 | N174: -16966.82 | O174: =-_xlfn.XLOOKUP(A174,[10]Capital!B:B,[10]Capital!AG:AG,0,FALSE) -> -13522.54 | P174: =_xlfn.XLOOKUP(A174,[10]Capital!B:B,[10]Capital!AH:AH,0,FALSE) -> 0 | Q174: -13522.54
A175: AX010 | B175: =_xlfn.XLOOKUP(A175,[9]Sheet2!A:A,[9]Sheet2!D:D,0,FALSE) -> Chq Bk | C175: REABV | D175: 330 | E175: 2236 | F175: 3302236 | G175: BROADMEADOW J | H175: -291704.2063 | I175: 70552.36 | J175: -221151.8463 | L175: -8193.2 | M175: -256.5 | N175: -8449.7 | O175: =-_xlfn.XLOOKUP(A175,[10]Capital!B:B,[10]Capital!AG:AG,0,FALSE) -> -14453.32 | P175: =_xlfn.XLOOKUP(A175,[10]Capital!B:B,[10]Capital!AH:AH,0,FALSE) -> 0 | Q175: -14453.32
A176: AX015 | B176: =_xlfn.XLOOKUP(A176,[9]Sheet2!A:A,[9]Sheet2!D:D,0,FALSE) -> Chq Bk | C176: REACD | D176: 330 | E176: 2312 | F176: 3302312 | G176: CHAD VALE JI | H176: -70016.77 | I176: 59297.77911 | J176: -10718.99089 | L176: -27226.64 | M176: 10139.95 | N176: -17086.69 | O176: =-_xlfn.XLOOKUP(A176,[10]Capital!B:B,[10]Capital!AG:AG,0,FALSE) -> -18445.26 | P176: =_xlfn.XLOOKUP(A176,[10]Capital!B:B,[10]Capital!AH:AH,0,FALSE) -> 3806.4 | Q176: -14638.86
A177: AX08W | B177: =_xlfn.XLOOKUP(A177,[9]Sheet2!A:A,[9]Sheet2!D:D,0,FALSE) -> Chq Bk | C177: REACG | D177: 330 | E177: 2251 | F177: 3302251 | G177: CHILCOTE JI NC | H177: -328970.5898 | I177: 136949.25 | J177: -192021.3398 | L177: -25023.04 | M177: -6697.96 | N177: -31721 | O177: =-_xlfn.XLOOKUP(A177,[10]Capital!B:B,[10]Capital!AG:AG,0,FALSE) -> -18962.81 | P177: =_xlfn.XLOOKUP(A177,[10]Capital!B:B,[10]Capital!AH:AH,0,FALSE) -> 0 | Q177: -18962.81
A178: AX019 | B178: =_xlfn.XLOOKUP(A178,[9]Sheet2!A:A,[9]Sheet2!D:D,0,FALSE) -> Chq Bk | C178: REACJ | D178: 330 | E178: 3319 | F178: 3303319 | G178: CHRIST THE KING RC JI NC | H178: -121852.2772 | I178: 4481.25 | J178: -117371.0272 | L178: 0 | M178: 0 | N178: 0 | O178: =-_xlfn.XLOOKUP(A178,[10]Capital!B:B,[10]Capital!AG:AG,0,FALSE) -> 0 | P178: =_xlfn.XLOOKUP(A178,[10]Capital!B:B,[10]Capital!AH:AH,0,FALSE) -> 0 | Q178: 0
A179: AX01A | B179: =_xlfn.XLOOKUP(A179,[9]Sheet2!A:A,[9]Sheet2!D:D,0,FALSE) -> Chq Bk | C179: REACK | D179: 330 | E179: 3002 | F179: 3303002 | G179: CHRISTCHURCH CE JI NC | H179: -460634.8098 | I179: 37619.44 | J179: -423015.3698 | L179: -6459.98 | M179: -6434.5 | N179: -12894.48 | O179: =-_xlfn.XLOOKUP(A179,[10]Capital!B:B,[10]Capital!AG:AG,0,FALSE) -> -14340.98 | P179: =_xlfn.XLOOKUP(A179,[10]Capital!B:B,[10]Capital!AH:AH,0,FALSE) -> 0 | Q179: -14340.98
A180: AX092 | B180: =_xlfn.XLOOKUP(A180,[9]Sheet2!A:A,[9]Sheet2!D:D,0,FALSE) -> Chq Bk | C180: REACV | D180: 330 | E180: 2054 | F180: 3302054 | G180: COLMORE I NC | H180: -79616.10057 | I180: 5972.48 | J180: -73643.62057 | L180: -8394.01 | M180: -1438.5 | N180: -9832.51 | O180: =-_xlfn.XLOOKUP(A180,[10]Capital!B:B,[10]Capital!AG:AG,0,FALSE) -> -17887.59 | P180: =_xlfn.XLOOKUP(A180,[10]Capital!B:B,[10]Capital!AH:AH,0,FALSE) -> 0 | Q180: -17887.59
A181: AX093 | B181: =_xlfn.XLOOKUP(A181,[9]Sheet2!A:A,[9]Sheet2!D:D,0,FALSE) -> Chq Bk | C181: REACW | D181: 330 | E181: 2053 | F181: 3302053 | G181: COLMORE J | H181: -241682.0948 | I181: -58004.45 | J181: -299686.5448 | L181: -9400.25 | M181: -3038.01 | N181: -12438.26 | O181: =-_xlfn.XLOOKUP(A181,[10]Capital!B:B,[10]Capital!AG:AG,0,FALSE) -> -19548.56 | P181: =_xlfn.XLOOKUP(A181,[10]Capital!B:B,[10]Capital!AH:AH,0,FALSE) -> 5235 | Q181: -14313.56
A182: AX027 | B182: =_xlfn.XLOOKUP(A182,[9]Sheet2!A:A,[9]Sheet2!D:D,0,FALSE) -> Chq bk | C182: REAEB | D182: 330 | E182: 2296 | F182: 3302296 | G182: GLENMEAD JI | H182: -245699.3433 | I182: -7632.45 | J182: -253331.7933 | L182: -10139.13 | M182: -519.98 | N182: -10659.11 | O182: =-_xlfn.XLOOKUP(A182,[10]Capital!B:B,[10]Capital!AG:AG,0,FALSE) -> -16459.32 | P182: =_xlfn.XLOOKUP(A182,[10]Capital!B:B,[10]Capital!AH:AH,0,FALSE) -> 0 | Q182: -16459.32
A183: AX02H | B183: =_xlfn.XLOOKUP(A183,[9]Sheet2!A:A,[9]Sheet2!D:D,0,FALSE) -> Chq Bk | C183: REAEP | D183: 330 | E183: 2092 | F183: 3302092 | G183: HALL GREEN J | H183: -731070.4932 | I183: -208848.8868 | J183: -939919.38 | L183: -28178.3 | M183: -9411.25 | N183: -37589.55 | O183: =-_xlfn.XLOOKUP(A183,[10]Capital!B:B,[10]Capital!AG:AG,0,FALSE) -> -19648.86 | P183: =_xlfn.XLOOKUP(A183,[10]Capital!B:B,[10]Capital!AH:AH,0,FALSE) -> 0 | Q183: -19648.86
A184: AX032 | B184: =_xlfn.XLOOKUP(A184,[9]Sheet2!A:A,[9]Sheet2!D:D,0,FALSE) -> Chq Bk | C184: REAFT | D184: 330 | E184: 2015 | F184: 3302015 | G184: JAMES WATT JI NC | H184: -742449.4742 | I184: -102826 | J184: -845275.4742 | L184: -17882.91 | M184: 16018.91 | N184: -1864 | O184: =-_xlfn.XLOOKUP(A184,[10]Capital!B:B,[10]Capital!AG:AG,0,FALSE) -> -18661.91 | P184: =_xlfn.XLOOKUP(A184,[10]Capital!B:B,[10]Capital!AH:AH,0,FALSE) -> 0 | Q184: -18661.91
A185: AX03L | B185: =_xlfn.XLOOKUP(A185,[9]Sheet2!A:A,[9]Sheet2!D:D,0,FALSE) -> Chq Bk | C185: REAGK | D185: 330 | E185: 2462 | F185: 3302462 | G185: LITTLE SUTTON JI | H185: -784632.1946 | I185: 74118.43 | J185: -710513.7646 | L185: -9470.35 | M185: -42192.41 | N185: -51662.76 | O185: =-_xlfn.XLOOKUP(A185,[10]Capital!B:B,[10]Capital!AG:AG,0,FALSE) -> -18525.5 | P185: =_xlfn.XLOOKUP(A185,[10]Capital!B:B,[10]Capital!AH:AH,0,FALSE) -> 12490.2 | Q185: -6035.3
A186: AX0AN | B186: =_xlfn.XLOOKUP(A186,[9]Sheet2!A:A,[9]Sheet2!D:D,0,FALSE) -> Chq Bk | C186: REAGL | D186: 330 | E186: 2127 | F186: 3302127 | G186: LOZELLS JI NC | H186: -496079.2994 | I186: 15728.65 | J186: -480350.6494 | L186: 0 | M186: -8974.75 | N186: -8974.75 | O186: =-_xlfn.XLOOKUP(A186,[10]Capital!B:B,[10]Capital!AG:AG,0,FALSE) -> -18870.53 | P186: =_xlfn.XLOOKUP(A186,[10]Capital!B:B,[10]Capital!AH:AH,0,FALSE) -> 0 | Q186: -18870.53
A187: AX03N | B187: =_xlfn.XLOOKUP(A187,[9]Sheet2!A:A,[9]Sheet2!D:D,0,FALSE) -> Chq Bk | C187: REAGM | D187: 330 | E187: 2129 | F187: 3302129 | G187: LYNDON GREEN I | H187: -116366.4412 | I187: -83458.14 | J187: -199824.5812 | L187: -40729.14 | M187: -7116.25 | N187: -47845.39 | O187: =-_xlfn.XLOOKUP(A187,[10]Capital!B:B,[10]Capital!AG:AG,0,FALSE) -> -15556.62 | P187: =_xlfn.XLOOKUP(A187,[10]Capital!B:B,[10]Capital!AH:AH,0,FALSE) -> 0 | Q187: -15556.62
A188: AX03P | B188: =_xlfn.XLOOKUP(A188,[9]Sheet2!A:A,[9]Sheet2!D:D,0,FALSE) -> Chq Bk | C188: REAGN | D188: 330 | E188: 2128 | F188: 3302128 | G188: LYNDON GREEN J | H188: -382804.7175 | I188: 144206.66 | J188: -238598.0575 | L188: -8095.2 | M188: -37929.25 | N188: -46024.45 | O188: =-_xlfn.XLOOKUP(A188,[10]Capital!B:B,[10]Capital!AG:AG,0,FALSE) -> -17402.14 | P188: =_xlfn.XLOOKUP(A188,[10]Capital!B:B,[10]Capital!AH:AH,0,FALSE) -> 0 | Q188: -17402.14
A189: AX03V | B189: =_xlfn.XLOOKUP(A189,[9]Sheet2!A:A,[9]Sheet2!D:D,0,FALSE) -> Chq Bk | C189: REAGY | D189: 330 | E189: 2133 | F189: 3302133 | G189: MARSH HILL JI | H189: -487974.4756 | I189: 35471.03 | J189: -452503.4456 | L189: -51590.68 | M189: -11984.95 | N189: -63575.63 | O189: =-_xlfn.XLOOKUP(A189,[10]Capital!B:B,[10]Capital!AG:AG,0,FALSE) -> -18164.42 | P189: =_xlfn.XLOOKUP(A189,[10]Capital!B:B,[10]Capital!AH:AH,0,FALSE) -> 0 | Q189: -18164.42
A190: AX03X | B190: =_xlfn.XLOOKUP(A190,[9]Sheet2!A:A,[9]Sheet2!D:D,0,FALSE) -> Chq Bk | C190: REAGZ | D190: 330 | E190: 3322 | F190: 3303322 | G190: MARYVALE RC JI NC | H190: -133853.511 | I190: 84.34 | J190: -133769.171 | L190: 0 | M190: -13482.24 | N190: -13482.24 | O190: =-_xlfn.XLOOKUP(A190,[10]Capital!B:B,[10]Capital!AG:AG,0,FALSE) -> 0 | P190: =_xlfn.XLOOKUP(A190,[10]Capital!B:B,[10]Capital!AH:AH,0,FALSE) -> 0 | Q190: 0
A191: AX049 | B191: =_xlfn.XLOOKUP(A191,[9]Sheet2!A:A,[9]Sheet2!D:D,0,FALSE) -> Chq Bk | C191: REAHX | D191: 330 | E191: 3323 | F191: 3303323 | G191: ORATORY RC JI NC | H191: -116743.2377 | I191: -64958 | J191: -181701.2377 | L191: 0 | M191: 0 | N191: 0 | O191: =-_xlfn.XLOOKUP(A191,[10]Capital!B:B,[10]Capital!AG:AG,0,FALSE) -> 0 | P191: =_xlfn.XLOOKUP(A191,[10]Capital!B:B,[10]Capital!AH:AH,0,FALSE) -> 0 | Q191: 0
A192: AX0BR | B192: =_xlfn.XLOOKUP(A192,[9]Sheet2!A:A,[9]Sheet2!D:D,0,FALSE) -> Chq Bk | C192: REAKR | D192: 330 | E192: 2174 | F192: 3302174 | G192: SLADEFIELD I | H192: -319679.968 | I192: 153529.27 | J192: -166150.698 | L192: -16088.75 | M192: -10166.25 | N192: -26255 | O192: =-_xlfn.XLOOKUP(A192,[10]Capital!B:B,[10]Capital!AG:AG,0,FALSE) -> -17161.42 | P192: =_xlfn.XLOOKUP(A192,[10]Capital!B:B,[10]Capital!AH:AH,0,FALSE) -> 0 | Q192: -17161.42
A193: AX05Q | B193: =_xlfn.XLOOKUP(A193,[9]Sheet2!A:A,[9]Sheet2!D:D,0,FALSE) -> Chq Bk | C193: REALP | D193: 330 | E193: 3363 | F193: 3303363 | G193: ST DUNSTAN'S RC JI NC | H193: -262510.8137 | I193: -7596.32 | J193: -270107.1337 | L193: 0 | M193: 0 | N193: 0 | O193: =-_xlfn.XLOOKUP(A193,[10]Capital!B:B,[10]Capital!AG:AG,0,FALSE) -> 0 | P193: =_xlfn.XLOOKUP(A193,[10]Capital!B:B,[10]Capital!AH:AH,0,FALSE) -> 0 | Q193: 0
A194: AX066 | B194: =_xlfn.XLOOKUP(A194,[9]Sheet2!A:A,[9]Sheet2!D:D,0,FALSE) -> Chq Bk | C194: REAMJ | D194: 330 | E194: 3377 | F194: 3303377 | G194: ST JUDE'S RC JI | H194: -252619.4082 | I194: 45621.66 | J194: -206997.7482 | L194: 0 | M194: 0 | N194: 0 | O194: =-_xlfn.XLOOKUP(A194,[10]Capital!B:B,[10]Capital!AG:AG,0,FALSE) -> 0 | P194: =_xlfn.XLOOKUP(A194,[10]Capital!B:B,[10]Capital!AH:AH,0,FALSE) -> 0 | Q194: 0
A195: AX067 | B195: =_xlfn.XLOOKUP(A195,[9]Sheet2!A:A,[9]Sheet2!D:D,0,FALSE) -> Chq Bk | C195: REAMK | D195: 330 | E195: 3371 | F195: 3303371 | G195: ST LAURENCE CE I | H195: -122801.735 | I195: 66864.02 | J195: -55937.71502 | L195: 0 | M195: 0 | N195: 0 | O195: =-_xlfn.XLOOKUP(A195,[10]Capital!B:B,[10]Capital!AG:AG,0,FALSE) -> 0 | P195: =_xlfn.XLOOKUP(A195,[10]Capital!B:B,[10]Capital!AH:AH,0,FALSE) -> 0 | Q195: 0
A196: AX06F | B196: =_xlfn.XLOOKUP(A196,[9]Sheet2!A:A,[9]Sheet2!D:D,0,FALSE) -> Chq Bk | C196: REAMX | D196: 330 | E196: 3016 | F196: 3303016 | G196: ST MATTHEW'S CE JI | H196: -473232.1529 | I196: -13276.94 | J196: -486509.0929 | L196: -6351.88 | M196: -6250 | N196: -12601.88 | O196: =-_xlfn.XLOOKUP(A196,[10]Capital!B:B,[10]Capital!AG:AG,0,FALSE) -> -14012 | P196: =_xlfn.XLOOKUP(A196,[10]Capital!B:B,[10]Capital!AH:AH,0,FALSE) -> 0 | Q196: -14012
A197: AX06L | B197: =_xlfn.XLOOKUP(A197,[9]Sheet2!A:A,[9]Sheet2!D:D,0,FALSE) -> Chq Bk | C197: REANF | D197: 330 | E197: 3428 | F197: 3303428 | G197: ST PETER'S CE JI NC | H197: -299586 | I197: 24203.59 | J197: -275382.41 | L197: -8524.25 | M197: 0 | N197: -8524.25 | O197: =-_xlfn.XLOOKUP(A197,[10]Capital!B:B,[10]Capital!AG:AG,0,FALSE) -> 0 | P197: =_xlfn.XLOOKUP(A197,[10]Capital!B:B,[10]Capital!AH:AH,0,FALSE) -> 0 | Q197: =O197+P197 -> 0
A198: AX0CH | B198: =_xlfn.XLOOKUP(A198,[9]Sheet2!A:A,[9]Sheet2!D:D,0,FALSE) -> Chq Bk | C198: REAPH | D198: 330 | E198: 5203 | F198: 3305203 | G198: WALMLEY I NC | H198: -149869 | I198: 49686.97 | J198: -100182.03 | L198: -7699.07 | M198: 29630 | N198: 21930.93 | O198: =-_xlfn.XLOOKUP(A198,[10]Capital!B:B,[10]Capital!AG:AG,0,FALSE) -> -16531.54 | P198: =_xlfn.XLOOKUP(A198,[10]Capital!B:B,[10]Capital!AH:AH,0,FALSE) -> 17880 | Q198: 1348.46
A199: AX0CJ | B199: =_xlfn.XLOOKUP(A199,[9]Sheet2!A:A,[9]Sheet2!D:D,0,FALSE) -> Chq Bk | C199: REAPJ | D199: 330 | E199: 5202 | F199: 3305202 | G199: WALMLEY J | H199: -248491.9714 | I199: 44583.53141 | J199: -203908.44 | L199: -32166.3 | M199: -8038.75 | N199: -40205.05 | O199: =-_xlfn.XLOOKUP(A199,[10]Capital!B:B,[10]Capital!AG:AG,0,FALSE) -> -17201.54 | P199: =_xlfn.XLOOKUP(A199,[10]Capital!B:B,[10]Capital!AH:AH,0,FALSE) -> 0 | Q199: -17201.54
A200: AX0CL | B200: =_xlfn.XLOOKUP(A200,[9]Sheet2!A:A,[9]Sheet2!D:D,0,FALSE) -> Chq Bk | C200: REAPQ | D200: 330 | E200: 2308 | F200: 3302308 | G200: WELFORD JI NC | H200: -454612 | I200: -4737.07 | J200: -459349.07 | L200: -8839.86 | M200: -8687.88 | N200: -17527.74 | O200: =-_xlfn.XLOOKUP(A200,[10]Capital!B:B,[10]Capital!AG:AG,0,FALSE) -> -18359 | P200: =_xlfn.XLOOKUP(A200,[10]Capital!B:B,[10]Capital!AH:AH,0,FALSE) -> 0 | Q200: -18359
... 21 more rows
